Workbook

Sheet Groep A
B1: Datum | C1: GROEP A | E1: Moyenne | F1: te maken caramboles | G1: rating getal | H1: caramboles 1e partij | I1: hoogste serie 1e partij | J1: percentage 1e partij | K1: caramboles 2e partij | L1: hoogste serie 2e partij | M1: percentage 2e partij | N1: totaal caramboles | O1: gespeeld gemiddelde | P1: gespeeld percentage | Q1: Punten afgerond | R1: uitgenodigd Finale
A2: 1 | C2: Adriaan Brinkema | D2: A | E2: =VLOOKUP(F2,X$2:Y29,2) -> 0.484 | F2: 14 | G2: =F2/30 -> 0.4666666667 | J2: =H2/F2*100 -> 0 | M2: =K2/F2*100 -> 0 | N2: =H2+K2 -> 0 | O2: =N2/60 -> 0 | P2: =O2/G2*100 -> 0 | Q2: =ROUNDDOWN(P2,0) -> 0 | X2: 8 | Y2: 0.275
A3: 2 | C3: Alea Ali | D3: A | E3: =VLOOKUP(F3,X$2:Y30,2) -> 0.65 | F3: 19 | G3: =F3/30 -> 0.6333333333 | J3: =H3/F3*100 -> 0 | M3: =K3/F3*100 -> 0 | N3: =H3+K3 -> 0 | O3: =N3/60 -> 0 | P3: =O3/G3*100 -> 0 | Q3: =ROUNDDOWN(P3,0) -> 0 | X3: 9 | Y3: 0.317
A4: 3 | C4: Andries Meindertsma | D4: A | E4: =VLOOKUP(F4,X$2:Y31,2) -> 0.517 | F4: 15 | G4: =F4/30 -> 0.5 | J4: =H4/F4*100 -> 0 | M4: =K4/F4*100 -> 0 | N4: =H4+K4 -> 0 | O4: =N4/60 -> 0 | P4: =O4/G4*100 -> 0 | Q4: =ROUNDDOWN(P4,0) -> 0 | X4: 10 | Y4: 0.35
A5: 4 | C5: Anton Drenth | D5: A | E5: =VLOOKUP(F5,X$2:Y32,2) -> 0.484 | F5: 14 | G5: =F5/30 -> 0.4666666667 | J5: =H5/F5*100 -> 0 | M5: =K5/F5*100 -> 0 | N5: =H5+K5 -> 0 | O5: =N5/60 -> 0 | P5: =O5/G5*100 -> 0 | Q5: =ROUNDDOWN(P5,0) -> 0 | X5: 11 | Y5: 0.384
A6: 5 | C6: Arie de Jong | D6: A | E6: =VLOOKUP(F6,X$2:Y33,2) -> 0.65 | F6: 19 | G6: =F6/30 -> 0.6333333333 | J6: =H6/F6*100 -> 0 | M6: =K6/F6*100 -> 0 | N6: =H6+K6 -> 0 | O6: =N6/60 -> 0 | P6: =O6/G6*100 -> 0 | Q6: =ROUNDDOWN(P6,0) -> 0 | X6: 12 | Y6: 0.417
A7: 6 | C7: Arli Sanwikrama | D7: A | E7: =VLOOKUP(F7,X$2:Y34,2) -> 0.584 | F7: 17 | G7: =F7/30 -> 0.5666666667 | J7: =H7/F7*100 -> 0 | M7: =K7/F7*100 -> 0 | N7: =H7+K7 -> 0 | O7: =N7/60 -> 0 | P7: =O7/G7*100 -> 0 | Q7: =ROUNDDOWN(P7,0) -> 0 | X7: 13 | Y7: 0.45
A8: 7 | C8: Ben Schollink | D8: A | E8: =VLOOKUP(F8,X$2:Y35,2) -> 0.717 | F8: 21 | G8: =F8/30 -> 0.7 | J8: =H8/F8*100 -> 0 | M8: =K8/F8*100 -> 0 | N8: =H8+K8 -> 0 | O8: =N8/60 -> 0 | P8: =O8/G8*100 -> 0 | Q8: =ROUNDDOWN(P8,0) -> 0 | X8: 14 | Y8: 0.484
A9: 8 | C9: Bert de Jonge | D9: A | E9: =VLOOKUP(F9,X$2:Y36,2) -> 0.484 | F9: 14 | G9: =F9/30 -> 0.4666666667 | J9: =H9/F9*100 -> 0 | M9: =K9/F9*100 -> 0 | N9: =H9+K9 -> 0 | O9: =N9/60 -> 0 | P9: =O9/G9*100 -> 0 | Q9: =ROUNDDOWN(P9,0) -> 0 | X9: 15 | Y9: 0.517
A10: 9 | C10: Bert Mein | D10: A | E10: =VLOOKUP(F10,X$2:Y37,2) -> 0.55 | F10: 16 | G10: =F10/30 -> 0.5333333333 | J10: =H10/F10*100 -> 0 | M10: =K10/F10*100 -> 0 | N10: =H10+K10 -> 0 | O10: =N10/60 -> 0 | P10: =O10/G10*100 -> 0 | Q10: =ROUNDDOWN(P10,0) -> 0 | X10: 16 | Y10: 0.55
A11: 10 | C11: Boele Boelens | D11: A | E11: =VLOOKUP(F11,X$2:Y38,2) -> 0.684 | F11: 20 | G11: =F11/30 -> 0.6666666667 | J11: =H11/F11*100 -> 0 | M11: =K11/F11*100 -> 0 | N11: =H11+K11 -> 0 | O11: =N11/60 -> 0 | P11: =O11/G11*100 -> 0 | Q11: =ROUNDDOWN(P11,0) -> 0 | X11: 17 | Y11: 0.584
A12: 11 | C12: Bram Werkman | D12: A | E12: =VLOOKUP(F12,X$2:Y39,2) -> 0.484 | F12: 14 | G12: =F12/30 -> 0.4666666667 | J12: =H12/F12*100 -> 0 | M12: =K12/F12*100 -> 0 | N12: =H12+K12 -> 0 | O12: =N12/60 -> 0 | P12: =O12/G12*100 -> 0 | Q12: =ROUNDDOWN(P12,0) -> 0 | X12: 18 | Y12: 0.617
A13: 12 | C13: Cris Mulder | D13: A | E13: =VLOOKUP(F13,X$2:Y40,2) -> 0.517 | F13: 15 | G13: =F13/30 -> 0.5 | J13: =H13/F13*100 -> 0 | M13: =K13/F13*100 -> 0 | N13: =H13+K13 -> 0 | O13: =N13/60 -> 0 | P13: =O13/G13*100 -> 0 | Q13: =ROUNDDOWN(P13,0) -> 0 | X13: 19 | Y13: 0.65
A14: 13 | C14: Danny Blaauw | D14: A | E14: =VLOOKUP(F14,X$2:Y41,2) -> 0.95 | F14: 28 | G14: =F14/30 -> 0.9333333333 | J14: =H14/F14*100 -> 0 | M14: =K14/F14*100 -> 0 | N14: =H14+K14 -> 0 | O14: =N14/60 -> 0 | P14: =O14/G14*100 -> 0 | Q14: =ROUNDDOWN(P14,0) -> 0 | X14: 20 | Y14: 0.684
A15: 14 | C15: Derk Boltjes | D15: A | E15: =VLOOKUP(F15,X$2:Y42,2) -> 0.55 | F15: 16 | G15: =F15/30 -> 0.5333333333 | J15: =H15/F15*100 -> 0 | M15: =K15/F15*100 -> 0 | N15: =H15+K15 -> 0 | O15: =N15/60 -> 0 | P15: =O15/G15*100 -> 0 | Q15: =ROUNDDOWN(P15,0) -> 0 | X15: 21 | Y15: 0.717
A16: 15 | C16: Derk Jan v. d. Laan | D16: A | E16: =VLOOKUP(F16,X$2:Y43,2) -> 0.45 | F16: 13 | G16: =F16/30 -> 0.4333333333 | J16: =H16/F16*100 -> 0 | M16: =K16/F16*100 -> 0 | N16: =H16+K16 -> 0 | O16: =N16/60 -> 0 | P16: =O16/G16*100 -> 0 | Q16: =ROUNDDOWN(P16,0) -> 0 | X16: 22 | Y16: 0.75
A17: 16 | C17: Douwe Engels | D17: A | E17: =VLOOKUP(F17,X$2:Y44,2) -> 0.45 | F17: 13 | G17: =F17/30 -> 0.4333333333 | J17: =H17/F17*100 -> 0 | M17: =K17/F17*100 -> 0 | N17: =H17+K17 -> 0 | O17: =N17/60 -> 0 | P17: =O17/G17*100 -> 0 | Q17: =ROUNDDOWN(P17,0) -> 0 | X17: 23 | Y17: 0.784
A18: 17 | C18: Ebel Duursma | D18: A | E18: =VLOOKUP(F18,X$2:Y45,2) -> 0.45 | F18: 13 | G18: =F18/30 -> 0.4333333333 | J18: =H18/F18*100 -> 0 | M18: =K18/F18*100 -> 0 | N18: =H18+K18 -> 0 | O18: =N18/60 -> 0 | P18: =O18/G18*100 -> 0 | Q18: =ROUNDDOWN(P18,0) -> 0 | X18: 24 | Y18: 0.817
A19: 18 | C19: Eddie Siemens | D19: A | E19: =VLOOKUP(F19,X$2:Y46,2) -> 1.184 | F19: 36 | G19: =F19/30 -> 1.2 | J19: =H19/F19*100 -> 0 | M19: =K19/F19*100 -> 0 | N19: =H19+K19 -> 0 | O19: =N19/60 -> 0 | P19: =O19/G19*100 -> 0 | Q19: =ROUNDDOWN(P19,0) -> 0 | X19: 25 | Y19: 0.85
A20: 19 | C20: Eppo Loer | D20: A | E20: =VLOOKUP(F20,X$2:Y47,2) -> 0.45 | F20: 13 | G20: =F20/30 -> 0.4333333333 | J20: =H20/F20*100 -> 0 | M20: =K20/F20*100 -> 0 | N20: =H20+K20 -> 0 | O20: =N20/60 -> 0 | P20: =O20/G20*100 -> 0 | Q20: =ROUNDDOWN(P20,0) -> 0 | X20: 26 | Y20: 0.884
A21: 20 | C21: Erik Kroeze | D21: A | E21: =VLOOKUP(F21,X$2:Y48,2) -> 0.55 | F21: 16 | G21: =F21/30 -> 0.5333333333 | J21: =H21/F21*100 -> 0 | M21: =K21/F21*100 -> 0 | N21: =H21+K21 -> 0 | O21: =N21/60 -> 0 | P21: =O21/G21*100 -> 0 | Q21: =ROUNDDOWN(P21,0) -> 0 | X21: 27 | Y21: 0.917
A22: 21 | C22: Erwin de Groot | D22: A | E22: =VLOOKUP(F22,X$2:Y49,2) -> 0.984 | F22: 29 | G22: =F22/30 -> 0.9666666667 | J22: =H22/F22*100 -> 0 | M22: =K22/F22*100 -> 0 | N22: =H22+K22 -> 0 | O22: =N22/60 -> 0 | P22: =O22/G22*100 -> 0 | Q22: =ROUNDDOWN(P22,0) -> 0 | X22: 28 | Y22: 0.95
A23: 22 | C23: Fokko van Biessum | D23: A | E23: =VLOOKUP(F23,X$2:Y50,2) -> 0.684 | F23: 20 | G23: =F23/30 -> 0.6666666667 | J23: =H23/F23*100 -> 0 | M23: =K23/F23*100 -> 0 | N23: =H23+K23 -> 0 | O23: =N23/60 -> 0 | P23: =O23/G23*100 -> 0 | Q23: =ROUNDDOWN(P23,0) -> 0 | X23: 29 | Y23: 0.984
A24: 23 | C24: Fré Ketelaar | D24: A | E24: =VLOOKUP(F24,X$2:Y51,2) -> 0.55 | F24: 16 | G24: =F24/30 -> 0.5333333333 | J24: =H24/F24*100 -> 0 | M24: =K24/F24*100 -> 0 | N24: =H24+K24 -> 0 | O24: =N24/60 -> 0 | P24: =O24/G24*100 -> 0 | Q24: =ROUNDDOWN(P24,0) -> 0 | X24: 30 | Y24: 1.017
A25: 24 | C25: Gean Klomp | D25: A | E25: =VLOOKUP(F25,X$2:Y52,2) -> 0.484 | F25: 14 | G25: =F25/30 -> 0.4666666667 | J25: =H25/F25*100 -> 0 | M25: =K25/F25*100 -> 0 | N25: =H25+K25 -> 0 | O25: =N25/60 -> 0 | P25: =O25/G25*100 -> 0 | Q25: =ROUNDDOWN(P25,0) -> 0 | X25: 31 | Y25: 1.05
A26: 25 | C26: Geert Grevink | D26: A | E26: =VLOOKUP(F26,X$2:Y53,2) -> 0.65 | F26: 19 | G26: =F26/30 -> 0.6333333333 | J26: =H26/F26*100 -> 0 | M26: =K26/F26*100 -> 0 | N26: =H26+K26 -> 0 | O26: =N26/60 -> 0 | P26: =O26/G26*100 -> 0 | Q26: =ROUNDDOWN(P26,0) -> 0 | X26: 32 | Y26: 1.084
A27: 26 | C27: Geert Rijks | D27: A | E27: =VLOOKUP(F27,X$2:Y54,2) -> 0.517 | F27: 15 | G27: =F27/30 -> 0.5 | J27: =H27/F27*100 -> 0 | M27: =K27/F27*100 -> 0 | N27: =H27+K27 -> 0 | O27: =N27/60 -> 0 | P27: =O27/G27*100 -> 0 | Q27: =ROUNDDOWN(P27,0) -> 0 | X27: 33 | Y27: 1.117
A28: 27 | C28: Geiko Reder | D28: A | E28: =VLOOKUP(F28,X$2:Y55,2) -> 0.484 | F28: 14 | G28: =F28/30 -> 0.4666666667 | J28: =H28/F28*100 -> 0 | M28: =K28/F28*100 -> 0 | N28: =H28+K28 -> 0 | O28: =N28/60 -> 0 | P28: =O28/G28*100 -> 0 | Q28: =ROUNDDOWN(P28,0) -> 0 | X28: 34 | Y28: 1.15
A29: 28 | C29: Gert van Oosten | D29: A | E29: =VLOOKUP(F29,X$2:Y56,2) -> 0.517 | F29: 15 | G29: =F29/30 -> 0.5 | J29: =H29/F29*100 -> 0 | M29: =K29/F29*100 -> 0 | N29: =H29+K29 -> 0 | O29: =N29/60 -> 0 | P29: =O29/G29*100 -> 0 | Q29: =ROUNDDOWN(P29,0) -> 0 | X29: 35 | Y29: 1.184
A30: 29 | C30: Han Felkers | D30: A | E30: =VLOOKUP(F30,X$2:Y57,2) -> 0.484 | F30: 14 | G30: =F30/30 -> 0.4666666667 | J30: =H30/F30*100 -> 0 | M30: =K30/F30*100 -> 0 | N30: =H30+K30 -> 0 | O30: =N30/60 -> 0 | P30: =O30/G30*100 -> 0 | Q30: =ROUNDDOWN(P30,0) -> 0
A31: 30 | C31: Hans Mulder | D31: A | E31: =VLOOKUP(F31,X$2:Y58,2) -> 0.584 | F31: 17 | G31: =F31/30 -> 0.5666666667 | J31: =H31/F31*100 -> 0 | M31: =K31/F31*100 -> 0 | N31: =H31+K31 -> 0 | O31: =N31/60 -> 0 | P31: =O31/G31*100 -> 0 | Q31: =ROUNDDOWN(P31,0) -> 0
A32: 31 | C32: Hans van Engelen | D32: A | E32: =VLOOKUP(F32,X$2:Y59,2) -> 0.65 | F32: 19 | G32: =F32/30 -> 0.6333333333 | J32: =H32/F32*100 -> 0 | M32: =K32/F32*100 -> 0 | N32: =H32+K32 -> 0 | O32: =N32/60 -> 0 | P32: =O32/G32*100 -> 0 | Q32: =ROUNDDOWN(P32,0) -> 0
A33: 32 | C33: Hans Warners | D33: A | E33: =VLOOKUP(F33,X$2:Y60,2) -> 0.684 | F33: 20 | G33: =F33/30 -> 0.6666666667 | J33: =H33/F33*100 -> 0 | M33: =K33/F33*100 -> 0 | N33: =H33+K33 -> 0 | O33: =N33/60 -> 0 | P33: =O33/G33*100 -> 0 | Q33: =ROUNDDOWN(P33,0) -> 0
A34: 33 | C34: Harm Wending | D34: A | E34: =VLOOKUP(F34,X$2:Y61,2) -> 0.55 | F34: 16 | G34: =F34/30 -> 0.5333333333 | J34: =H34/F34*100 -> 0 | M34: =K34/F34*100 -> 0 | N34: =H34+K34 -> 0 | O34: =N34/60 -> 0 | P34: =O34/G34*100 -> 0 | Q34: =ROUNDDOWN(P34,0) -> 0
A35: 34 | C35: Harrie de Jonge | D35: A | E35: =VLOOKUP(F35,X$2:Y62,2) -> 0.717 | F35: 21 | G35: =F35/30 -> 0.7 | J35: =H35/F35*100 -> 0 | M35: =K35/F35*100 -> 0 | N35: =H35+K35 -> 0 | O35: =N35/60 -> 0 | P35: =O35/G35*100 -> 0 | Q35: =ROUNDDOWN(P35,0) -> 0
A36: 35 | C36: Harrie Rijks | D36: A | E36: =VLOOKUP(F36,X$2:Y63,2) -> 0.55 | F36: 16 | G36: =F36/30 -> 0.5333333333 | J36: =H36/F36*100 -> 0 | M36: =K36/F36*100 -> 0 | N36: =H36+K36 -> 0 | O36: =N36/60 -> 0 | P36: =O36/G36*100 -> 0 | Q36: =ROUNDDOWN(P36,0) -> 0
A37: 36 | C37: Harrie Viswat | D37: A | E37: =VLOOKUP(F37,X$2:Y64,2) -> 0.884 | F37: 26 | G37: =F37/30 -> 0.8666666667 | J37: =H37/F37*100 -> 0 | M37: =K37/F37*100 -> 0 | N37: =H37+K37 -> 0 | O37: =N37/60 -> 0 | P37: =O37/G37*100 -> 0 | Q37: =ROUNDDOWN(P37,0) -> 0
A38: 37 | C38: Harry Dorgelo | D38: A | E38: =VLOOKUP(F38,X$2:Y65,2) -> 0.484 | F38: 14 | G38: =F38/30 -> 0.4666666667 | J38: =H38/F38*100 -> 0 | M38: =K38/F38*100 -> 0 | N38: =H38+K38 -> 0 | O38: =N38/60 -> 0 | P38: =O38/G38*100 -> 0 | Q38: =ROUNDDOWN(P38,0) -> 0
A39: 38 | C39: Harry Ploeger | D39: A | E39: =VLOOKUP(F39,X$2:Y66,2) -> 0.584 | F39: 17 | G39: =F39/30 -> 0.5666666667 | J39: =H39/F39*100 -> 0 | M39: =K39/F39*100 -> 0 | N39: =H39+K39 -> 0 | O39: =N39/60 -> 0 | P39: =O39/G39*100 -> 0 | Q39: =ROUNDDOWN(P39,0) -> 0
A40: 39 | C40: Hendrik Engels | D40: A | E40: =VLOOKUP(F40,X$2:Y67,2) -> 0.617 | F40: 18 | G40: =F40/30 -> 0.6 | J40: =H40/F40*100 -> 0 | M40: =K40/F40*100 -> 0 | N40: =H40+K40 -> 0 | O40: =N40/60 -> 0 | P40: =O40/G40*100 -> 0 | Q40: =ROUNDDOWN(P40,0) -> 0
A41: 40 | C41: Henk Bos | D41: A | E41: =VLOOKUP(F41,X$2:Y68,2) -> 0.484 | F41: 14 | G41: =F41/30 -> 0.4666666667 | J41: =H41/F41*100 -> 0 | M41: =K41/F41*100 -> 0 | N41: =H41+K41 -> 0 | O41: =N41/60 -> 0 | P41: =O41/G41*100 -> 0 | Q41: =ROUNDDOWN(P41,0) -> 0
A42: 41 | C42: Henk Mast | D42: A | E42: =VLOOKUP(F42,X$2:Y69,2) -> 0.517 | F42: 15 | G42: =F42/30 -> 0.5 | J42: =H42/F42*100 -> 0 | M42: =K42/F42*100 -> 0 | N42: =H42+K42 -> 0 | O42: =N42/60 -> 0 | P42: =O42/G42*100 -> 0 | Q42: =ROUNDDOWN(P42,0) -> 0
A43: 42 | C43: Henk Matthijssen | D43: A | E43: =VLOOKUP(F43,X$2:Y70,2) -> 0.417 | F43: 12 | G43: =F43/30 -> 0.4 | J43: =H43/F43*100 -> 0 | M43: =K43/F43*100 -> 0 | N43: =H43+K43 -> 0 | O43: =N43/60 -> 0 | P43: =O43/G43*100 -> 0 | Q43: =ROUNDDOWN(P43,0) -> 0
A44: 43 | C44: Henk Schrik | D44: A | E44: =VLOOKUP(F44,X$2:Y71,2) -> 0.517 | F44: 15 | G44: =F44/30 -> 0.5 | J44: =H44/F44*100 -> 0 | M44: =K44/F44*100 -> 0 | N44: =H44+K44 -> 0 | O44: =N44/60 -> 0 | P44: =O44/G44*100 -> 0 | Q44: =ROUNDDOWN(P44,0) -> 0
A45: 44 | C45: Henk Tammes | D45: A | E45: =VLOOKUP(F45,X$2:Y72,2) -> 0.484 | F45: 14 | G45: =F45/30 -> 0.4666666667 | J45: =H45/F45*100 -> 0 | M45: =K45/F45*100 -> 0 | N45: =H45+K45 -> 0 | O45: =N45/60 -> 0 | P45: =O45/G45*100 -> 0 | Q45: =ROUNDDOWN(P45,0) -> 0
A46: 45 | C46: Hennie Hof | D46: A | E46: =VLOOKUP(F46,X$2:Y73,2) -> 0.65 | F46: 19 | G46: =F46/30 -> 0.6333333333 | J46: =H46/F46*100 -> 0 | M46: =K46/F46*100 -> 0 | N46: =H46+K46 -> 0 | O46: =N46/60 -> 0 | P46: =O46/G46*100 -> 0 | Q46: =ROUNDDOWN(P46,0) -> 0
A47: 46 | C47: Hilbrand Balk | D47: A | E47: =VLOOKUP(F47,X$2:Y74,2) -> 0.384 | F47: 11 | G47: =F47/30 -> 0.3666666667 | J47: =H47/F47*100 -> 0 | M47: =K47/F47*100 -> 0 | N47: =H47+K47 -> 0 | O47: =N47/60 -> 0 | P47: =O47/G47*100 -> 0 | Q47: =ROUNDDOWN(P47,0) -> 0
A48: 47 | C48: Hilko Blaauw | D48: A | E48: =VLOOKUP(F48,X$2:Y75,2) -> 0.45 | F48: 13 | G48: =F48/30 -> 0.4333333333 | J48: =H48/F48*100 -> 0 | M48: =K48/F48*100 -> 0 | N48: =H48+K48 -> 0 | O48: =N48/60 -> 0 | P48: =O48/G48*100 -> 0 | Q48: =ROUNDDOWN(P48,0) -> 0
A49: 48 | C49: Jack van de Berg | D49: A | E49: =VLOOKUP(F49,X$2:Y76,2) -> 0.517 | F49: 15 | G49: =F49/30 -> 0.5 | J49: =H49/F49*100 -> 0 | M49: =K49/F49*100 -> 0 | N49: =H49+K49 -> 0 | O49: =N49/60 -> 0 | P49: =O49/G49*100 -> 0 | Q49: =ROUNDDOWN(P49,0) -> 0
A50: 49 | C50: Jacky Imminga | D50: A | E50: =VLOOKUP(F50,X$2:Y77,2) -> 0.717 | F50: 21 | G50: =F50/30 -> 0.7 | J50: =H50/F50*100 -> 0 | M50: =K50/F50*100 -> 0 | N50: =H50+K50 -> 0 | O50: =N50/60 -> 0 | P50: =O50/G50*100 -> 0 | Q50: =ROUNDDOWN(P50,0) -> 0
A51: 50 | C51: Jacob Bosma | D51: A | E51: =VLOOKUP(F51,X$2:Y78,2) -> 0.484 | F51: 14 | G51: =F51/30 -> 0.4666666667 | J51: =H51/F51*100 -> 0 | M51: =K51/F51*100 -> 0 | N51: =H51+K51 -> 0 | O51: =N51/60 -> 0 | P51: =O51/G51*100 -> 0 | Q51: =ROUNDDOWN(P51,0) -> 0
A52: 51 | C52: Jacob Post | D52: A | E52: =VLOOKUP(F52,X$2:Y79,2) -> 0.65 | F52: 19 | G52: =F52/30 -> 0.6333333333 | J52: =H52/F52*100 -> 0 | M52: =K52/F52*100 -> 0 | N52: =H52+K52 -> 0 | O52: =N52/60 -> 0 | P52: =O52/G52*100 -> 0 | Q52: =ROUNDDOWN(P52,0) -> 0
A53: 52 | C53: Jan Eggengoor | D53: A | E53: =VLOOKUP(F53,X$2:Y80,2) -> 0.484 | F53: 14 | G53: =F53/30 -> 0.4666666667 | J53: =H53/F53*100 -> 0 | M53: =K53/F53*100 -> 0 | N53: =H53+K53 -> 0 | O53: =N53/60 -> 0 | P53: =O53/G53*100 -> 0 | Q53: =ROUNDDOWN(P53,0) -> 0
A54: 53 | C54: Jan Jansen | D54: A | E54: =VLOOKUP(F54,X$2:Y81,2) -> 0.55 | F54: 16 | G54: =F54/30 -> 0.5333333333 | J54: =H54/F54*100 -> 0 | M54: =K54/F54*100 -> 0 | N54: =H54+K54 -> 0 | O54: =N54/60 -> 0 | P54: =O54/G54*100 -> 0 | Q54: =ROUNDDOWN(P54,0) -> 0
A55: 54 | C55: Jan Kok | D55: A | E55: =VLOOKUP(F55,X$2:Y82,2) -> 0.617 | F55: 18 | G55: =F55/30 -> 0.6 | J55: =H55/F55*100 -> 0 | M55: =K55/F55*100 -> 0 | N55: =H55+K55 -> 0 | O55: =N55/60 -> 0 | P55: =O55/G55*100 -> 0 | Q55: =ROUNDDOWN(P55,0) -> 0
A56: 55 | C56: Jan Regtop | D56: A | E56: =VLOOKUP(F56,X$2:Y83,2) -> 0.55 | F56: 16 | G56: =F56/30 -> 0.5333333333 | J56: =H56/F56*100 -> 0 | M56: =K56/F56*100 -> 0 | N56: =H56+K56 -> 0 | O56: =N56/60 -> 0 | P56: =O56/G56*100 -> 0 | Q56: =ROUNDDOWN(P56,0) -> 0
A57: 56 | C57: Jeroen Edens | D57: A | E57: =VLOOKUP(F57,X$2:Y84,2) -> 0.484 | F57: 14 | G57: =F57/30 -> 0.4666666667 | J57: =H57/F57*100 -> 0 | M57: =K57/F57*100 -> 0 | N57: =H57+K57 -> 0 | O57: =N57/60 -> 0 | P57: =O57/G57*100 -> 0 | Q57: =ROUNDDOWN(P57,0) -> 0
A58: 57 | C58: Jetse Ploeg | D58: A | E58: =VLOOKUP(F58,X$2:Y85,2) -> 0.484 | F58: 14 | G58: =F58/30 -> 0.4666666667 | J58: =H58/F58*100 -> 0 | M58: =K58/F58*100 -> 0 | N58: =H58+K58 -> 0 | O58: =N58/60 -> 0 | P58: =O58/G58*100 -> 0 | Q58: =ROUNDDOWN(P58,0) -> 0
A59: 58 | C59: Johan Doldersum | D59: A | E59: =VLOOKUP(F59,X$2:Y86,2) -> 0.617 | F59: 18 | G59: =F59/30 -> 0.6 | J59: =H59/F59*100 -> 0 | M59: =K59/F59*100 -> 0 | N59: =H59+K59 -> 0 | O59: =N59/60 -> 0 | P59: =O59/G59*100 -> 0 | Q59: =ROUNDDOWN(P59,0) -> 0
A60: 59 | C60: Johan Meijer | D60: A | E60: =VLOOKUP(F60,X$2:Y87,2) -> 0.55 | F60: 16 | G60: =F60/30 -> 0.5333333333 | J60: =H60/F60*100 -> 0 | M60: =K60/F60*100 -> 0 | N60: =H60+K60 -> 0 | O60: =N60/60 -> 0 | P60: =O60/G60*100 -> 0 | Q60: =ROUNDDOWN(P60,0) -> 0
A61: 60 | C61: Johnny Geertsma | D61: A | E61: =VLOOKUP(F61,X$2:Y88,2) -> 0.817 | F61: 24 | G61: =F61/30 -> 0.8 | J61: =H61/F61*100 -> 0 | M61: =K61/F61*100 -> 0 | N61: =H61+K61 -> 0 | O61: =N61/60 -> 0 | P61: =O61/G61*100 -> 0 | Q61: =ROUNDDOWN(P61,0) -> 0
A62: 61 | C62: Jordi Blaauw | D62: A | E62: =VLOOKUP(F62,X$2:Y89,2) -> 0.884 | F62: 26 | G62: =F62/30 -> 0.8666666667 | J62: =H62/F62*100 -> 0 | M62: =K62/F62*100 -> 0 | N62: =H62+K62 -> 0 | O62: =N62/60 -> 0 | P62: =O62/G62*100 -> 0 | Q62: =ROUNDDOWN(P62,0) -> 0
A63: 62 | C63: Jos Bouwmeester | D63: A | E63: =VLOOKUP(F63,X$2:Y90,2) -> 0.45 | F63: 13 | G63: =F63/30 -> 0.4333333333 | J63: =H63/F63*100 -> 0 | M63: =K63/F63*100 -> 0 | N63: =H63+K63 -> 0 | O63: =N63/60 -> 0 | P63: =O63/G63*100 -> 0 | Q63: =ROUNDDOWN(P63,0) -> 0
A64: 63 | C64: Jos Vrieze | D64: A | E64: =VLOOKUP(F64,X$2:Y91,2) -> 0.517 | F64: 15 | G64: =F64/30 -> 0.5 | J64: =H64/F64*100 -> 0 | M64: =K64/F64*100 -> 0 | N64: =H64+K64 -> 0 | O64: =N64/60 -> 0 | P64: =O64/G64*100 -> 0 | Q64: =ROUNDDOWN(P64,0) -> 0
A65: 64 | C65: Kasper Sturre | D65: A | E65: =VLOOKUP(F65,X$2:Y92,2) -> 0.65 | F65: 19 | G65: =F65/30 -> 0.6333333333 | J65: =H65/F65*100 -> 0 | M65: =K65/F65*100 -> 0 | N65: =H65+K65 -> 0 | O65: =N65/60 -> 0 | P65: =O65/G65*100 -> 0 | Q65: =ROUNDDOWN(P65,0) -> 0
A66: 65 | C66: Kees Bol | D66: A | E66: =VLOOKUP(F66,X$2:Y93,2) -> 0.484 | F66: 14 | G66: =F66/30 -> 0.4666666667 | J66: =H66/F66*100 -> 0 | M66: =K66/F66*100 -> 0 | N66: =H66+K66 -> 0 | O66: =N66/60 -> 0 | P66: =O66/G66*100 -> 0 | Q66: =ROUNDDOWN(P66,0) -> 0
A67: 66 | C67: Kees Schornagel | D67: A | E67: =VLOOKUP(F67,X$2:Y94,2) -> 0.55 | F67: 16 | G67: =F67/30 -> 0.5333333333 | J67: =H67/F67*100 -> 0 | M67: =K67/F67*100 -> 0 | N67: =H67+K67 -> 0 | O67: =N67/60 -> 0 | P67: =O67/G67*100 -> 0 | Q67: =ROUNDDOWN(P67,0) -> 0
A68: 67 | C68: Klaas Siepel | D68: A | E68: =VLOOKUP(F68,X$2:Y95,2) -> 0.484 | F68: 14 | G68: =F68/30 -> 0.4666666667 | J68: =H68/F68*100 -> 0 | M68: =K68/F68*100 -> 0 | N68: =H68+K68 -> 0 | O68: =N68/60 -> 0 | P68: =O68/G68*100 -> 0 | Q68: =ROUNDDOWN(P68,0) -> 0
A69: 68 | C69: Koert Loer | D69: A | E69: =VLOOKUP(F69,X$2:Y96,2) -> 0.517 | F69: 15 | G69: =F69/30 -> 0.5 | J69: =H69/F69*100 -> 0 | M69: =K69/F69*100 -> 0 | N69: =H69+K69 -> 0 | O69: =N69/60 -> 0 | P69: =O69/G69*100 -> 0 | Q69: =ROUNDDOWN(P69,0) -> 0
A70: 69 | C70: Koos Blaauw | D70: A | E70: =VLOOKUP(F70,X$2:Y97,2) -> 0.684 | F70: 20 | G70: =F70/30 -> 0.6666666667 | J70: =H70/F70*100 -> 0 | M70: =K70/F70*100 -> 0 | N70: =H70+K70 -> 0 | O70: =N70/60 -> 0 | P70: =O70/G70*100 -> 0 | Q70: =ROUNDDOWN(P70,0) -> 0
A71: 70 | C71: Lucas Bronsema | D71: A | E71: =VLOOKUP(F71,X$2:Y98,2) -> 0.884 | F71: 26 | G71: =F71/30 -> 0.8666666667 | J71: =H71/F71*100 -> 0 | M71: =K71/F71*100 -> 0 | N71: =H71+K71 -> 0 | O71: =N71/60 -> 0 | P71: =O71/G71*100 -> 0 | Q71: =ROUNDDOWN(P71,0) -> 0
A72: 71 | C72: Machiel Hamersma | D72: A | E72: =VLOOKUP(F72,X$2:Y99,2) -> 0.55 | F72: 16 | G72: =F72/30 -> 0.5333333333 | J72: =H72/F72*100 -> 0 | M72: =K72/F72*100 -> 0 | N72: =H72+K72 -> 0 | O72: =N72/60 -> 0 | P72: =O72/G72*100 -> 0 | Q72: =ROUNDDOWN(P72,0) -> 0
A73: 72 | C73: Marcel Schiphorst | D73: A | E73: =VLOOKUP(F73,X$2:Y100,2) -> 0.584 | F73: 17 | G73: =F73/30 -> 0.5666666667 | J73: =H73/F73*100 -> 0 | M73: =K73/F73*100 -> 0 | N73: =H73+K73 -> 0 | O73: =N73/60 -> 0 | P73: =O73/G73*100 -> 0 | Q73: =ROUNDDOWN(P73,0) -> 0
A74: 73 | C74: Marten Bosma | D74: A | E74: =VLOOKUP(F74,X$2:Y101,2) -> 0.45 | F74: 13 | G74: =F74/30 -> 0.4333333333 | J74: =H74/F74*100 -> 0 | M74: =K74/F74*100 -> 0 | N74: =H74+K74 -> 0 | O74: =N74/60 -> 0 | P74: =O74/G74*100 -> 0 | Q74: =ROUNDDOWN(P74,0) -> 0
A75: 74 | C75: Max Veenhuis | D75: A | E75: =VLOOKUP(F75,X$2:Y102,2) -> 0.584 | F75: 17 | G75: =F75/30 -> 0.5666666667 | J75: =H75/F75*100 -> 0 | M75: =K75/F75*100 -> 0 | N75: =H75+K75 -> 0 | O75: =N75/60 -> 0 | P75: =O75/G75*100 -> 0 | Q75: =ROUNDDOWN(P75,0) -> 0
A76: 75 | C76: Peter Lambeck | D76: A | E76: =VLOOKUP(F76,X$2:Y103,2) -> 0.484 | F76: 14 | G76: =F76/30 -> 0.4666666667 | J76: =H76/F76*100 -> 0 | M76: =K76/F76*100 -> 0 | N76: =H76+K76 -> 0 | O76: =N76/60 -> 0 | P76: =O76/G76*100 -> 0 | Q76: =ROUNDDOWN(P76,0) -> 0
A77: 76 | C77: Peter Sterenborg | D77: A | E77: =VLOOKUP(F77,X$2:Y104,2) -> 0.65 | F77: 19 | G77: =F77/30 -> 0.6333333333 | J77: =H77/F77*100 -> 0 | M77: =K77/F77*100 -> 0 | N77: =H77+K77 -> 0 | O77: =N77/60 -> 0 | P77: =O77/G77*100 -> 0 | Q77: =ROUNDDOWN(P77,0) -> 0
A78: 77 | C78: Reinier van der Kooi | D78: A | E78: =VLOOKUP(F78,X$2:Y105,2) -> 0.584 | F78: 17 | G78: =F78/30 -> 0.5666666667 | J78: =H78/F78*100 -> 0 | M78: =K78/F78*100 -> 0 | N78: =H78+K78 -> 0 | O78: =N78/60 -> 0 | P78: =O78/G78*100 -> 0 | Q78: =ROUNDDOWN(P78,0) -> 0
A79: 78 | C79: René Berg | D79: A | E79: =VLOOKUP(F79,X$2:Y106,2) -> 0.784 | F79: 23 | G79: =F79/30 -> 0.7666666667 | J79: =H79/F79*100 -> 0 | M79: =K79/F79*100 -> 0 | N79: =H79+K79 -> 0 | O79: =N79/60 -> 0 | P79: =O79/G79*100 -> 0 | Q79: =ROUNDDOWN(P79,0) -> 0
A80: 79 | C80: René Martena | D80: A | E80: =VLOOKUP(F80,X$2:Y107,2) -> 0.65 | F80: 19 | G80: =F80/30 -> 0.6333333333 | J80: =H80/F80*100 -> 0 | M80: =K80/F80*100 -> 0 | N80: =H80+K80 -> 0 | O80: =N80/60 -> 0 | P80: =O80/G80*100 -> 0 | Q80: =ROUNDDOWN(P80,0) -> 0
A81: 80 | C81: Robbin Blaauw | D81: A | E81: =VLOOKUP(F81,X$2:Y108,2) -> 0.617 | F81: 18 | G81: =F81/30 -> 0.6 | J81: =H81/F81*100 -> 0 | M81: =K81/F81*100 -> 0 | N81: =H81+K81 -> 0 | O81: =N81/60 -> 0 | P81: =O81/G81*100 -> 0 | Q81: =ROUNDDOWN(P81,0) -> 0
A82: 81 | C82: Robert Berg | D82: A | E82: =VLOOKUP(F82,X$2:Y109,2) -> 0.617 | F82: 18 | G82: =F82/30 -> 0.6 | J82: =H82/F82*100 -> 0 | M82: =K82/F82*100 -> 0 | N82: =H82+K82 -> 0 | O82: =N82/60 -> 0 | P82: =O82/G82*100 -> 0 | Q82: =ROUNDDOWN(P82,0) -> 0
A83: 82 | C83: Roel Maatjes | D83: A | E83: =VLOOKUP(F83,X$2:Y110,2) -> 0.45 | F83: 13 | G83: =F83/30 -> 0.4333333333 | J83: =H83/F83*100 -> 0 | M83: =K83/F83*100 -> 0 | N83: =H83+K83 -> 0 | O83: =N83/60 -> 0 | P83: =O83/G83*100 -> 0 | Q83: =ROUNDDOWN(P83,0) -> 0
A84: 83 | C84: Roelof Eefting | D84: A | E84: =VLOOKUP(F84,X$2:Y111,2) -> 0.65 | F84: 19 | G84: =F84/30 -> 0.6333333333 | J84: =H84/F84*100 -> 0 | M84: =K84/F84*100 -> 0 | N84: =H84+K84 -> 0 | O84: =N84/60 -> 0 | P84: =O84/G84*100 -> 0 | Q84: =ROUNDDOWN(P84,0) -> 0
A85: 84 | C85: Ron Steenstra | D85: A | E85: =VLOOKUP(F85,X$2:Y112,2) -> 0.717 | F85: 21 | G85: =F85/30 -> 0.7 | J85: =H85/F85*100 -> 0 | M85: =K85/F85*100 -> 0 | N85: =H85+K85 -> 0 | O85: =N85/60 -> 0 | P85: =O85/G85*100 -> 0 | Q85: =ROUNDDOWN(P85,0) -> 0
A86: 85 | C86: Ronald Bakker | D86: A | E86: =VLOOKUP(F86,X$2:Y113,2) -> 0.484 | F86: 14 | G86: =F86/30 -> 0.4666666667 | J86: =H86/F86*100 -> 0 | M86: =K86/F86*100 -> 0 | N86: =H86+K86 -> 0 | O86: =N86/60 -> 0 | P86: =O86/G86*100 -> 0 | Q86: =ROUNDDOWN(P86,0) -> 0
A87: 86 | C87: Ronald Elings | D87: A | E87: =VLOOKUP(F87,X$2:Y114,2) -> 0.417 | F87: 12 | G87: =F87/30 -> 0.4 | J87: =H87/F87*100 -> 0 | M87: =K87/F87*100 -> 0 | N87: =H87+K87 -> 0 | O87: =N87/60 -> 0 | P87: =O87/G87*100 -> 0 | Q87: =ROUNDDOWN(P87,0) -> 0
A88: 87 | C88: Rudi Scholtens | D88: A | E88: =VLOOKUP(F88,X$2:Y115,2) -> 0.484 | F88: 14 | G88: =F88/30 -> 0.4666666667 | J88: =H88/F88*100 -> 0 | M88: =K88/F88*100 -> 0 | N88: =H88+K88 -> 0 | O88: =N88/60 -> 0 | P88: =O88/G88*100 -> 0 | Q88: =ROUNDDOWN(P88,0) -> 0
A89: 88 | C89: Sip Kooiker | D89: A | E89: =VLOOKUP(F89,X$2:Y116,2) -> 0.55 | F89: 16 | G89: =F89/30 -> 0.5333333333 | J89: =H89/F89*100 -> 0 | M89: =K89/F89*100 -> 0 | N89: =H89+K89 -> 0 | O89: =N89/60 -> 0 | P89: =O89/G89*100 -> 0 | Q89: =ROUNDDOWN(P89,0) -> 0
A90: 89 | C90: Sjaak van den Berg | D90: A | E90: =VLOOKUP(F90,X$2:Y117,2) -> 0.45 | F90: 13 | G90: =F90/30 -> 0.4333333333 | J90: =H90/F90*100 -> 0 | M90: =K90/F90*100 -> 0 | N90: =H90+K90 -> 0 | O90: =N90/60 -> 0 | P90: =O90/G90*100 -> 0 | Q90: =ROUNDDOWN(P90,0) -> 0
A91: 90 | C91: Stienus Sluiter | D91: A | E91: =VLOOKUP(F91,X$2:Y118,2) -> 0.517 | F91: 15 | G91: =F91/30 -> 0.5 | J91: =H91/F91*100 -> 0 | M91: =K91/F91*100 -> 0 | N91: =H91+K91 -> 0 | O91: =N91/60 -> 0 | P91: =O91/G91*100 -> 0 | Q91: =ROUNDDOWN(P91,0) -> 0
A92: 91 | C92: Tim Oortman | D92: A | E92: =VLOOKUP(F92,X$2:Y119,2) -> 0.517 | F92: 15 | G92: =F92/30 -> 0.5 | J92: =H92/F92*100 -> 0 | M92: =K92/F92*100 -> 0 | N92: =H92+K92 -> 0 | O92: =N92/60 -> 0 | P92: =O92/G92*100 -> 0 | Q92: =ROUNDDOWN(P92,0) -> 0
A93: 92 | C93: Tjaart Schaub | D93: A | E93: =VLOOKUP(F93,X$2:Y120,2) -> 0.584 | F93: 17 | G93: =F93/30 -> 0.5666666667 | J93: =H93/F93*100 -> 0 | M93: =K93/F93*100 -> 0 | N93: =H93+K93 -> 0 | O93: =N93/60 -> 0 | P93: =O93/G93*100 -> 0 | Q93: =ROUNDDOWN(P93,0) -> 0
A94: 93 | C94: Tjapko Mellema | D94: A | E94: =VLOOKUP(F94,X$2:Y121,2) -> 0.517 | F94: 15 | G94: =F94/30 -> 0.5 | J94: =H94/F94*100 -> 0 | M94: =K94/F94*100 -> 0 | N94: =H94+K94 -> 0 | O94: =N94/60 -> 0 | P94: =O94/G94*100 -> 0 | Q94: =ROUNDDOWN(P94,0) -> 0
A95: 94 | C95: Tjerk Hofman | D95: A | E95: =VLOOKUP(F95,X$2:Y122,2) -> 0.45 | F95: 13 | G95: =F95/30 -> 0.4333333333 | J95: =H95/F95*100 -> 0 | M95: =K95/F95*100 -> 0 | N95: =H95+K95 -> 0 | O95: =N95/60 -> 0 | P95: =O95/G95*100 -> 0 | Q95: =ROUNDDOWN(P95,0) -> 0
A96: 95 | C96: Tom Been | D96: A | E96: =VLOOKUP(F96,X$2:Y123,2) -> 0.45 | F96: 13 | G96: =F96/30 -> 0.4333333333 | J96: =H96/F96*100 -> 0 | M96: =K96/F96*100 -> 0 | N96: =H96+K96 -> 0 | O96: =N96/60 -> 0 | P96: =O96/G96*100 -> 0 | Q96: =ROUNDDOWN(P96,0) -> 0
A97: 96 | C97: Wietse de Vries | D97: A | E97: =VLOOKUP(F97,X$2:Y124,2) -> 0.617 | F97: 18 | G97: =F97/30 -> 0.6 | J97: =H97/F97*100 -> 0 | M97: =K97/F97*100 -> 0 | N97: =H97+K97 -> 0 | O97: =N97/60 -> 0 | P97: =O97/G97*100 -> 0 | Q97: =ROUNDDOWN(P97,0) -> 0
A98: 97 | C98: Wilco Schiphorst | D98: A | E98: =VLOOKUP(F98,X$2:Y125,2) -> 0.55 | F98: 16 | G98: =F98/30 -> 0.5333333333 | J98: =H98/F98*100 -> 0 | M98: =K98/F98*100 -> 0 | N98: =H98+K98 -> 0 | O98: =N98/60 -> 0 | P98: =O98/G98*100 -> 0 | Q98: =ROUNDDOWN(P98,0) -> 0
A99: 98 | C99: Willem Bos | D99: A | E99: =VLOOKUP(F99,X$2:Y126,2) -> 0.584 | F99: 17 | G99: =F99/30 -> 0.5666666667 | J99: =H99/F99*100 -> 0 | M99: =K99/F99*100 -> 0 | N99: =H99+K99 -> 0 | O99: =N99/60 -> 0 | P99: =O99/G99*100 -> 0 | Q99: =ROUNDDOWN(P99,0) -> 0
A100: 99 | C100: Willem Reilink | D100: A | E100: =VLOOKUP(F100,X$2:Y127,2) -> 0.484 | F100: 14 | G100: =F100/30 -> 0.4666666667 | J100: =H100/F100*100 -> 0 | M100: =K100/F100*100 -> 0 | N100: =H100+K100 -> 0 | O100: =N100/60 -> 0 | P100: =O100/G100*100 -> 0 | Q100: =ROUNDDOWN(P100,0) -> 0
A101: 100 | C101: Willem Weerd | D101: A | E101: =VLOOKUP(F101,X$2:Y128,2) -> 0.484 | F101: 14 | G101: =F101/30 -> 0.4666666667 | J101: =H101/F101*100 -> 0 | M101: =K101/F101*100 -> 0 | N101: =H101+K101 -> 0 | O101: =N101/60 -> 0 | P101: =O101/G101*100 -> 0 | Q101: =ROUNDDOWN(P101,0) -> 0
A102: 101 | C102: Willie Siemens | D102: A | E102: =VLOOKUP(F102,X$2:Y129,2) -> 0.75 | F102: 22 | G102: =F102/30 -> 0.7333333333 | J102: =H102/F102*100 -> 0 | M102: =K102/F102*100 -> 0 | N102: =H102+K102 -> 0 | O102: =N102/60 -> 0 | P102: =O102/G102*100 -> 0 | Q102: =ROUNDDOWN(P102,0) -> 0
A103: 102 | C103: Wolter Eling | D103: A | E103: =VLOOKUP(F103,X$2:Y130,2) -> 0.55 | F103: 16 | G103: =F103/30 -> 0.5333333333 | J103: =H103/F103*100 -> 0 | M103: =K103/F103*100 -> 0 | N103: =H103+K103 -> 0 | O103: =N103/60 -> 0 | P103: =O103/G103*100 -> 0 | Q103: =ROUNDDOWN(P103,0) -> 0
A104: 103 | C104: Wolter Stratingh | D104: A | E104: =VLOOKUP(F104,X$2:Y131,2) -> 0.65 | F104: 19 | G104: =F104/30 -> 0.6333333333 | J104: =H104/F104*100 -> 0 | M104: =K104/F104*100 -> 0 | N104: =H104+K104 -> 0 | O104: =N104/60 -> 0 | P104: =O104/G104*100 -> 0 | Q104: =ROUNDDOWN(P104,0) -> 0
A105: 104 | D105: A | E105: =VLOOKUP(F105,X$2:Y132,2) -> 0.275 | F105: 8 | G105: =F105/30 -> 0.2666666667 | J105: =H105/F105*100 -> 0 | M105: =K105/F105*100 -> 0 | N105: =H105+K105 -> 0 | O105: =N105/60 -> 0 | P105: =O105/G105*100 -> 0 | Q105: =ROUNDDOWN(P105,0) -> 0
A106: 105 | D106: A | E106: =VLOOKUP(F106,X$2:Y133,2) -> 0.275 | F106: 8 | G106: =F106/30 -> 0.2666666667 | J106: =H106/F106*100 -> 0 | M106: =K106/F106*100 -> 0 | N106: =H106+K106 -> 0 | O106: =N106/60 -> 0 | P106: =O106/G106*100 -> 0 | Q106: =ROUNDDOWN(P106,0) -> 0
A107: 106 | D107: A | E107: =VLOOKUP(F107,X$2:Y134,2) -> 0.275 | F107: 8 | G107: =F107/30 -> 0.2666666667 | J107: =H107/F107*100 -> 0 | M107: =K107/F107*100 -> 0 | N107: =H107+K107 -> 0 | O107: =N107/60 -> 0 | P107: =O107/G107*100 -> 0 | Q107: =ROUNDDOWN(P107,0) -> 0
A108: 107 | D108: A | E108: =VLOOKUP(F108,X$2:Y135,2) -> 0.275 | F108: 8 | G108: =F108/30 -> 0.2666666667 | J108: =H108/F108*100 -> 0 | M108: =K108/F108*100 -> 0 | N108: =H108+K108 -> 0 | O108: =N108/60 -> 0 | P108: =O108/G108*100 -> 0 | Q108: =ROUNDDOWN(P108,0) -> 0
A109: 108 | D109: A | E109: =VLOOKUP(F109,X$2:Y136,2) -> 0.275 | F109: 8 | G109: =F109/30 -> 0.2666666667 | J109: =H109/F109*100 -> 0 | M109: =K109/F109*100 -> 0 | N109: =H109+K109 -> 0 | O109: =N109/60 -> 0 | P109: =O109/G109*100 -> 0 | Q109: =ROUNDDOWN(P109,0) -> 0
A110: 109 | D110: A | E110: =VLOOKUP(F110,X$2:Y137,2) -> 0.275 | F110: 8 | G110: =F110/30 -> 0.2666666667 | J110: =H110/F110*100 -> 0 | M110: =K110/F110*100 -> 0 | N110: =H110+K110 -> 0 | O110: =N110/60 -> 0 | P110: =O110/G110*100 -> 0 | Q110: =ROUNDDOWN(P110,0) -> 0
A111: 110 | D111: A | E111: =VLOOKUP(F111,X$2:Y138,2) -> 0.275 | F111: 8 | G111: =F111/30 -> 0.2666666667 | J111: =H111/F111*100 -> 0 | M111: =K111/F111*100 -> 0 | N111: =H111+K111 -> 0 | O111: =N111/60 -> 0 | P111: =O111/G111*100 -> 0 | Q111: =ROUNDDOWN(P111,0) -> 0
A112: 111 | D112: A | E112: =VLOOKUP(F112,X$2:Y139,2) -> 0.275 | F112: 8 | G112: =F112/30 -> 0.2666666667 | J112: =H112/F112*100 -> 0 | M112: =K112/F112*100 -> 0 | N112: =H112+K112 -> 0 | O112: =N112/60 -> 0 | P112: =O112/G112*100 -> 0 | Q112: =ROUNDDOWN(P112,0) -> 0
A113: 112 | D113: A | E113: =VLOOKUP(F113,X$2:Y140,2) -> 0.275 | F113: 8 | G113: =F113/30 -> 0.2666666667 | J113: =H113/F113*100 -> 0 | M113: =K113/F113*100 -> 0 | N113: =H113+K113 -> 0 | O113: =N113/60 -> 0 | P113: =O113/G113*100 -> 0 | Q113: =ROUNDDOWN(P113,0) -> 0
A114: 113 | D114: A | E114: =VLOOKUP(F114,X$2:Y141,2) -> 0.275 | F114: 8 | G114: =F114/30 -> 0.2666666667 | J114: =H114/F114*100 -> 0 | M114: =K114/F114*100 -> 0 | N114: =H114+K114 -> 0 | O114: =N114/60 -> 0 | P114: =O114/G114*100 -> 0 | Q114: =ROUNDDOWN(P114,0) -> 0
A115: 114 | D115: A | E115: =VLOOKUP(F115,X$2:Y142,2) -> 0.275 | F115: 8 | G115: =F115/30 -> 0.2666666667 | J115: =H115/F115*100 -> 0 | M115: =K115/F115*100 -> 0 | N115: =H115+K115 -> 0 | O115: =N115/60 -> 0 | P115: =O115/G115*100 -> 0 | Q115: =ROUNDDOWN(P115,0) -> 0
A116: 115 | D116: A | E116: =VLOOKUP(F116,X$2:Y143,2) -> 0.275 | F116: 8 | G116: =F116/30 -> 0.2666666667 | J116: =H116/F116*100 -> 0 | M116: =K116/F116*100 -> 0 | N116: =H116+K116 -> 0 | O116: =N116/60 -> 0 | P116: =O116/G116*100 -> 0 | Q116: =ROUNDDOWN(P116,0) -> 0
A117: 116 | D117: A | E117: =VLOOKUP(F117,X$2:Y144,2) -> 0.275 | F117: 8 | G117: =F117/30 -> 0.2666666667 | J117: =H117/F117*100 -> 0 | M117: =K117/F117*100 -> 0 | N117: =H117+K117 -> 0 | O117: =N117/60 -> 0 | P117: =O117/G117*100 -> 0 | Q117: =ROUNDDOWN(P117,0) -> 0
A118: 117 | D118: A | E118: =VLOOKUP(F118,X$2:Y145,2) -> 0.275 | F118: 8 | G118: =F118/30 -> 0.2666666667 | J118: =H118/F118*100 -> 0 | M118: =K118/F118*100 -> 0 | N118: =H118+K118 -> 0 | O118: =N118/60 -> 0 | P118: =O118/G118*100 -> 0 | Q118: =ROUNDDOWN(P118,0) -> 0
A119: 118 | D119: A | E119: =VLOOKUP(F119,X$2:Y146,2) -> 0.275 | F119: 8 | G119: =F119/30 -> 0.2666666667 | J119: =H119/F119*100 -> 0 | M119: =K119/F119*100 -> 0 | N119: =H119+K119 -> 0 | O119: =N119/60 -> 0 | P119: =O119/G119*100 -> 0 | Q119: =ROUNDDOWN(P119,0) -> 0
A120: 119 | D120: A | E120: =VLOOKUP(F120,X$2:Y147,2) -> 0.275 | F120: 8 | G120: =F120/30 -> 0.2666666667 | J120: =H120/F120*100 -> 0 | M120: =K120/F120*100 -> 0 | N120: =H120+K120 -> 0 | O120: =N120/60 -> 0 | P120: =O120/G120*100 -> 0 | Q120: =ROUNDDOWN(P120,0) -> 0
A121: 120 | D121: A | E121: =VLOOKUP(F121,X$2:Y148,2) -> 0.275 | F121: 8 | G121: =F121/30 -> 0.2666666667 | J121: =H121/F121*100 -> 0 | M121: =K121/F121*100 -> 0 | N121: =H121+K121 -> 0 | O121: =N121/60 -> 0 | P121: =O121/G121*100 -> 0 | Q121: =ROUNDDOWN(P121,0) -> 0
A122: 121 | D122: A | E122: =VLOOKUP(F122,X$2:Y149,2) -> 0.275 | F122: 8 | G122: =F122/30 -> 0.2666666667 | J122: =H122/F122*100 -> 0 | M122: =K122/F122*100 -> 0 | N122: =H122+K122 -> 0 | O122: =N122/60 -> 0 | P122: =O122/G122*100 -> 0 | Q122: =ROUNDDOWN(P122,0) -> 0
A123: 122 | D123: A | E123: =VLOOKUP(F123,X$2:Y150,2) -> 0.275 | F123: 8 | G123: =F123/30 -> 0.2666666667 | J123: =H123/F123*100 -> 0 | M123: =K123/F123*100 -> 0 | N123: =H123+K123 -> 0 | O123: =N123/60 -> 0 | P123: =O123/G123*100 -> 0 | Q123: =ROUNDDOWN(P123,0) -> 0
A124: 123 | D124: A | E124: =VLOOKUP(F124,X$2:Y151,2) -> 0.275 | F124: 8 | G124: =F124/30 -> 0.2666666667 | J124: =H124/F124*100 -> 0 | M124: =K124/F124*100 -> 0 | N124: =H124+K124 -> 0 | O124: =N124/60 -> 0 | P124: =O124/G124*100 -> 0 | Q124: =ROUNDDOWN(P124,0) -> 0
A125: 124 | D125: A | E125: =VLOOKUP(F125,X$2:Y152,2) -> 0.275 | F125: 8 | G125: =F125/30 -> 0.2666666667 | J125: =H125/F125*100 -> 0 | M125: =K125/F125*100 -> 0 | N125: =H125+K125 -> 0 | O125: =N125/60 -> 0 | P125: =O125/G125*100 -> 0 | Q125: =ROUNDDOWN(P125,0) -> 0
A126: 125 | D126: A | E126: =VLOOKUP(F126,X$2:Y153,2) -> 0.275 | F126: 8 | G126: =F126/30 -> 0.2666666667 | J126: =H126/F126*100 -> 0 | M126: =K126/F126*100 -> 0 | N126: =H126+K126 -> 0 | O126: =N126/60 -> 0 | P126: =O126/G126*100 -> 0 | Q126: =ROUNDDOWN(P126,0) -> 0
A127: 126 | D127: A | E127: =VLOOKUP(F127,X$2:Y154,2) -> 0.275 | F127: 8 | G127: =F127/30 -> 0.2666666667 | J127: =H127/F127*100 -> 0 | M127: =K127/F127*100 -> 0 | N127: =H127+K127 -> 0 | O127: =N127/60 -> 0 | P127: =O127/G127*100 -> 0 | Q127: =ROUNDDOWN(P127,0) -> 0
A128: 127 | D128: A | E128: =VLOOKUP(F128,X$2:Y155,2) -> 0.275 | F128: 8 | G128: =F128/30 -> 0.2666666667 | J128: =H128/F128*100 -> 0 | M128: =K128/F128*100 -> 0 | N128: =H128+K128 -> 0 | O128: =N128/60 -> 0 | P128: =O128/G128*100 -> 0 | Q128: =ROUNDDOWN(P128,0) -> 0
A129: 128 | D129: A | E129: =VLOOKUP(F129,X$2:Y156,2) -> 0.275 | F129: 8 | G129: =F129/30 -> 0.2666666667 | J129: =H129/F129*100 -> 0 | M129: =K129/F129*100 -> 0 | N129: =H129+K129 -> 0 | O129: =N129/60 -> 0 | P129: =O129/G129*100 -> 0 | Q129: =ROUNDDOWN(P129,0) -> 0
A130: 129 | D130: A | E130: =VLOOKUP(F130,X$2:Y157,2) -> 0.275 | F130: 8 | G130: =F130/30 -> 0.2666666667 | J130: =H130/F130*100 -> 0 | M130: =K130/F130*100 -> 0 | N130: =H130+K130 -> 0 | O130: =N130/60 -> 0 | P130: =O130/G130*100 -> 0 | Q130: =ROUNDDOWN(P130,0) -> 0
A131: 130 | D131: A | E131: =VLOOKUP(F131,X$2:Y158,2) -> 0.275 | F131: 8 | G131: =F131/30 -> 0.2666666667 | J131: =H131/F131*100 -> 0 | M131: =K131/F131*100 -> 0 | N131: =H131+K131 -> 0 | O131: =N131/60 -> 0 | P131: =O131/G131*100 -> 0 | Q131: =ROUNDDOWN(P131,0) -> 0
A132: 131 | D132: A | E132: =VLOOKUP(F132,X$2:Y159,2) -> 0.275 | F132: 8 | G132: =F132/30 -> 0.2666666667 | J132: =H132/F132*100 -> 0 | M132: =K132/F132*100 -> 0 | N132: =H132+K132 -> 0 | O132: =N132/60 -> 0 | P132: =O132/G132*100 -> 0 | Q132: =ROUNDDOWN(P132,0) -> 0
A133: 132 | D133: A | E133: =VLOOKUP(F133,X$2:Y160,2) -> 0.275 | F133: 8 | G133: =F133/30 -> 0.2666666667 | J133: =H133/F133*100 -> 0 | M133: =K133/F133*100 -> 0 | N133: =H133+K133 -> 0 | O133: =N133/60 -> 0 | P133: =O133/G133*100 -> 0 | Q133: =ROUNDDOWN(P133,0) -> 0
A134: 133 | D134: A | E134: =VLOOKUP(F134,X$2:Y161,2) -> 0.275 | F134: 8 | G134: =F134/30 -> 0.2666666667 | J134: =H134/F134*100 -> 0 | M134: =K134/F134*100 -> 0 | N134: =H134+K134 -> 0 | O134: =N134/60 -> 0 | P134: =O134/G134*100 -> 0 | Q134: =ROUNDDOWN(P134,0) -> 0
A135: 134 | D135: A | E135: =VLOOKUP(F135,X$2:Y162,2) -> 0.275 | F135: 8 | G135: =F135/30 -> 0.2666666667 | J135: =H135/F135*100 -> 0 | M135: =K135/F135*100 -> 0 | N135: =H135+K135 -> 0 | O135: =N135/60 -> 0 | P135: =O135/G135*100 -> 0 | Q135: =ROUNDDOWN(P135,0) -> 0
A136: 135 | D136: A | E136: =VLOOKUP(F136,X$2:Y163,2) -> 0.275 | F136: 8 | G136: =F136/30 -> 0.2666666667 | J136: =H136/F136*100 -> 0 | M136: =K136/F136*100 -> 0 | N136: =H136+K136 -> 0 | O136: =N136/60 -> 0 | P136: =O136/G136*100 -> 0 | Q136: =ROUNDDOWN(P136,0) -> 0
A137: 136 | D137: A | E137: =VLOOKUP(F137,X$2:Y164,2) -> 0.275 | F137: 8 | G137: =F137/30 -> 0.2666666667 | J137: =H137/F137*100 -> 0 | M137: =K137/F137*100 -> 0 | N137: =H137+K137 -> 0 | O137: =N137/60 -> 0 | P137: =O137/G137*100 -> 0 | Q137: =ROUNDDOWN(P137,0) -> 0
A138: 137 | D138: A | E138: =VLOOKUP(F138,X$2:Y165,2) -> 0.275 | F138: 8 | G138: =F138/30 -> 0.2666666667 | J138: =H138/F138*100 -> 0 | M138: =K138/F138*100 -> 0 | N138: =H138+K138 -> 0 | O138: =N138/60 -> 0 | P138: =O138/G138*100 -> 0 | Q138: =ROUNDDOWN(P138,0) -> 0
A139: 138 | D139: A | E139: =VLOOKUP(F139,X$2:Y166,2) -> 0.275 | F139: 8 | G139: =F139/30 -> 0.2666666667 | J139: =H139/F139*100 -> 0 | M139: =K139/F139*100 -> 0 | N139: =H139+K139 -> 0 | O139: =N139/60 -> 0 | P139: =O139/G139*100 -> 0 | Q139: =ROUNDDOWN(P139,0) -> 0
A140: 139 | D140: A | E140: =VLOOKUP(F140,X$2:Y167,2) -> 0.275 | F140: 8 | G140: =F140/30 -> 0.2666666667 | J140: =H140/F140*100 -> 0 | M140: =K140/F140*100 -> 0 | N140: =H140+K140 -> 0 | O140: =N140/60 -> 0 | P140: =O140/G140*100 -> 0 | Q140: =ROUNDDOWN(P140,0) -> 0
A141: 140 | D141: A | E141: =VLOOKUP(F141,X$2:Y168,2) -> 0.275 | F141: 8 | G141: =F141/30 -> 0.2666666667 | J141: =H141/F141*100 -> 0 | M141: =K141/F141*100 -> 0 | N141: =H141+K141 -> 0 | O141: =N141/60 -> 0 | P141: =O141/G141*100 -> 0 | Q141: =ROUNDDOWN(P141,0) -> 0
A142: 141 | D142: A | E142: =VLOOKUP(F142,X$2:Y169,2) -> 0.275 | F142: 8 | G142: =F142/30 -> 0.2666666667 | J142: =H142/F142*100 -> 0 | M142: =K142/F142*100 -> 0 | N142: =H142+K142 -> 0 | O142: =N142/60 -> 0 | P142: =O142/G142*100 -> 0 | Q142: =ROUNDDOWN(P142,0) -> 0
A143: 142 | D143: A | E143: =VLOOKUP(F143,X$2:Y170,2) -> 0.275 | F143: 8 | G143: =F143/30 -> 0.2666666667 | J143: =H143/F143*100 -> 0 | M143: =K143/F143*100 -> 0 | N143: =H143+K143 -> 0 | O143: =N143/60 -> 0 | P143: =O143/G143*100 -> 0 | Q143: =ROUNDDOWN(P143,0) -> 0
A144: 143 | D144: A | E144: =VLOOKUP(F144,X$2:Y171,2) -> 0.275 | F144: 8 | G144: =F144/30 -> 0.2666666667 | J144: =H144/F144*100 -> 0 | M144: =K144/F144*100 -> 0 | N144: =H144+K144 -> 0 | O144: =N144/60 -> 0 | P144: =O144/G144*100 -> 0 | Q144: =ROUNDDOWN(P144,0) -> 0
A145: 144 | D145: A | E145: =VLOOKUP(F145,X$2:Y172,2) -> 0.275 | F145: 8 | G145: =F145/30 -> 0.2666666667 | J145: =H145/F145*100 -> 0 | M145: =K145/F145*100 -> 0 | N145: =H145+K145 -> 0 | O145: =N145/60 -> 0 | P145: =O145/G145*100 -> 0 | Q145: =ROUNDDOWN(P145,0) -> 0
A146: 145 | D146: A | E146: =VLOOKUP(F146,X$2:Y173,2) -> 0.275 | F146: 8 | G146: =F146/30 -> 0.2666666667 | J146: =H146/F146*100 -> 0 | M146: =K146/F146*100 -> 0 | N146: =H146+K146 -> 0 | O146: =N146/60 -> 0 | P146: =O146/G146*100 -> 0 | Q146: =ROUNDDOWN(P146,0) -> 0
A147: 146 | D147: A | E147: =VLOOKUP(F147,X$2:Y174,2) -> 0.275 | F147: 8 | G147: =F147/30 -> 0.2666666667 | J147: =H147/F147*100 -> 0 | M147: =K147/F147*100 -> 0 | N147: =H147+K147 -> 0 | O147: =N147/60 -> 0 | P147: =O147/G147*100 -> 0 | Q147: =ROUNDDOWN(P147,0) -> 0
A148: 147 | D148: A | E148: =VLOOKUP(F148,X$2:Y175,2) -> 0.275 | F148: 8 | G148: =F148/30 -> 0.2666666667 | J148: =H148/F148*100 -> 0 | M148: =K148/F148*100 -> 0 | N148: =H148+K148 -> 0 | O148: =N148/60 -> 0 | P148: =O148/G148*100 -> 0 | Q148: =ROUNDDOWN(P148,0) -> 0
A149: 148 | D149: A | E149: =VLOOKUP(F149,X$2:Y176,2) -> 0.275 | F149: 8 | G149: =F149/30 -> 0.2666666667 | J149: =H149/F149*100 -> 0 | M149: =K149/F149*100 -> 0 | N149: =H149+K149 -> 0 | O149: =N149/60 -> 0 | P149: =O149/G149*100 -> 0 | Q149: =ROUNDDOWN(P149,0) -> 0
A150: 149 | D150: A | E150: =VLOOKUP(F150,X$2:Y177,2) -> 0.275 | F150: 8 | G150: =F150/30 -> 0.2666666667 | J150: =H150/F150*100 -> 0 | M150: =K150/F150*100 -> 0 | N150: =H150+K150 -> 0 | O150: =N150/60 -> 0 | P150: =O150/G150*100 -> 0 | Q150: =ROUNDDOWN(P150,0) -> 0
A151: 150 | D151: A | E151: =VLOOKUP(F151,X$2:Y178,2) -> 0.275 | F151: 8 | G151: =F151/30 -> 0.2666666667 | J151: =H151/F151*100 -> 0 | M151: =K151/F151*100 -> 0 | N151: =H151+K151 -> 0 | O151: =N151/60 -> 0 | P151: =O151/G151*100 -> 0 | Q151: =ROUNDDOWN(P151,0) -> 0
A152: 151 | D152: A | E152: =VLOOKUP(F152,X$2:Y179,2) -> 0.275 | F152: 8 | G152: =F152/30 -> 0.2666666667 | J152: =H152/F152*100 -> 0 | M152: =K152/F152*100 -> 0 | N152: =H152+K152 -> 0 | O152: =N152/60 -> 0 | P152: =O152/G152*100 -> 0 | Q152: =ROUNDDOWN(P152,0) -> 0
A153: 152 | D153: A | E153: =VLOOKUP(F153,X$2:Y180,2) -> 0.275 | F153: 8 | G153: =F153/30 -> 0.2666666667 | J153: =H153/F153*100 -> 0 | M153: =K153/F153*100 -> 0 | N153: =H153+K153 -> 0 | O153: =N153/60 -> 0 | P153: =O153/G153*100 -> 0 | Q153: =ROUNDDOWN(P153,0) -> 0
A154: 153 | D154: A | E154: =VLOOKUP(F154,X$2:Y181,2) -> 0.275 | F154: 8 | G154: =F154/30 -> 0.2666666667 | J154: =H154/F154*100 -> 0 | M154: =K154/F154*100 -> 0 | N154: =H154+K154 -> 0 | O154: =N154/60 -> 0 | P154: =O154/G154*100 -> 0 | Q154: =ROUNDDOWN(P154,0) -> 0
A155: 154 | D155: A | E155: =VLOOKUP(F155,X$2:Y182,2) -> 0.275 | F155: 8 | G155: =F155/30 -> 0.2666666667 | J155: =H155/F155*100 -> 0 | M155: =K155/F155*100 -> 0 | N155: =H155+K155 -> 0 | O155: =N155/60 -> 0 | P155: =O155/G155*100 -> 0 | Q155: =ROUNDDOWN(P155,0) -> 0
A156: 155 | D156: A | E156: =VLOOKUP(F156,X$2:Y183,2) -> 0.275 | F156: 8 | G156: =F156/30 -> 0.2666666667 | J156: =H156/F156*100 -> 0 | M156: =K156/F156*100 -> 0 | N156: =H156+K156 -> 0 | O156: =N156/60 -> 0 | P156: =O156/G156*100 -> 0 | Q156: =ROUNDDOWN(P156,0) -> 0
A157: 156 | D157: A | E157: =VLOOKUP(F157,X$2:Y184,2) -> 0.275 | F157: 8 | G157: =F157/30 -> 0.2666666667 | J157: =H157/F157*100 -> 0 | M157: =K157/F157*100 -> 0 | N157: =H157+K157 -> 0 | O157: =N157/60 -> 0 | P157: =O157/G157*100 -> 0 | Q157: =ROUNDDOWN(P157,0) -> 0
A158: 157 | D158: A | E158: =VLOOKUP(F158,X$2:Y185,2) -> 0.275 | F158: 8 | G158: =F158/30 -> 0.2666666667 | J158: =H158/F158*100 -> 0 | M158: =K158/F158*100 -> 0 | N158: =H158+K158 -> 0 | O158: =N158/60 -> 0 | P158: =O158/G158*100 -> 0 | Q158: =ROUNDDOWN(P158,0) -> 0
A159: 158 | D159: A | E159: =VLOOKUP(F159,X$2:Y186,2) -> 0.275 | F159: 8 | G159: =F159/30 -> 0.2666666667 | J159: =H159/F159*100 -> 0 | M159: =K159/F159*100 -> 0 | N159: =H159+K159 -> 0 | O159: =N159/60 -> 0 | P159: =O159/G159*100 -> 0 | Q159: =ROUNDDOWN(P159,0) -> 0
A160: 159 | D160: A | E160: =VLOOKUP(F160,X$2:Y187,2) -> 0.275 | F160: 8 | G160: =F160/30 -> 0.2666666667 | J160: =H160/F160*100 -> 0 | M160: =K160/F160*100 -> 0 | N160: =H160+K160 -> 0 | O160: =N160/60 -> 0 | P160: =O160/G160*100 -> 0 | Q160: =ROUNDDOWN(P160,0) -> 0
A161: 160 | D161: A | E161: =VLOOKUP(F161,X$2:Y188,2) -> 0.275 | F161: 8 | G161: =F161/30 -> 0.2666666667 | J161: =H161/F161*100 -> 0 | M161: =K161/F161*100 -> 0 | N161: =H161+K161 -> 0 | O161: =N161/60 -> 0 | P161: =O161/G161*100 -> 0 | Q161: =ROUNDDOWN(P161,0) -> 0
A162: 161 | D162: A | E162: =VLOOKUP(F162,X$2:Y189,2) -> 0.275 | F162: 8 | G162: =F162/30 -> 0.2666666667 | J162: =H162/F162*100 -> 0 | M162: =K162/F162*100 -> 0 | N162: =H162+K162 -> 0 | O162: =N162/60 -> 0 | P162: =O162/G162*100 -> 0 | Q162: =ROUNDDOWN(P162,0) -> 0
A163: 162 | D163: A | E163: =VLOOKUP(F163,X$2:Y190,2) -> 0.275 | F163: 8 | G163: =F163/30 -> 0.2666666667 | J163: =H163/F163*100 -> 0 | M163: =K163/F163*100 -> 0 | N163: =H163+K163 -> 0 | O163: =N163/60 -> 0 | P163: =O163/G163*100 -> 0 | Q163: =ROUNDDOWN(P163,0) -> 0
A164: 163 | D164: A | E164: =VLOOKUP(F164,X$2:Y191,2) -> 0.275 | F164: 8 | G164: =F164/30 -> 0.2666666667 | J164: =H164/F164*100 -> 0 | M164: =K164/F164*100 -> 0 | N164: =H164+K164 -> 0 | O164: =N164/60 -> 0 | P164: =O164/G164*100 -> 0 | Q164: =ROUNDDOWN(P164,0) -> 0
A165: 164 | D165: A | E165: =VLOOKUP(F165,X$2:Y192,2) -> 0.275 | F165: 8 | G165: =F165/30 -> 0.2666666667 | J165: =H165/F165*100 -> 0 | M165: =K165/F165*100 -> 0 | N165: =H165+K165 -> 0 | O165: =N165/60 -> 0 | P165: =O165/G165*100 -> 0 | Q165: =ROUNDDOWN(P165,0) -> 0
A166: 165 | D166: A | E166: =VLOOKUP(F166,X$2:Y193,2) -> 0.275 | F166: 8 | G166: =F166/30 -> 0.2666666667 | J166: =H166/F166*100 -> 0 | M166: =K166/F166*100 -> 0 | N166: =H166+K166 -> 0 | O166: =N166/60 -> 0 | P166: =O166/G166*100 -> 0 | Q166: =ROUNDDOWN(P166,0) -> 0
A167: 166 | D167: A | E167: =VLOOKUP(F167,X$2:Y194,2) -> 0.275 | F167: 8 | G167: =F167/30 -> 0.2666666667 | J167: =H167/F167*100 -> 0 | M167: =K167/F167*100 -> 0 | N167: =H167+K167 -> 0 | O167: =N167/60 -> 0 | P167: =O167/G167*100 -> 0 | Q167: =ROUNDDOWN(P167,0) -> 0
A168: 167 | D168: A | E168: =VLOOKUP(F168,X$2:Y195,2) -> 0.275 | F168: 8 | G168: =F168/30 -> 0.2666666667 | J168: =H168/F168*100 -> 0 | M168: =K168/F168*100 -> 0 | N168: =H168+K168 -> 0 | O168: =N168/60 -> 0 | P168: =O168/G168*100 -> 0 | Q168: =ROUNDDOWN(P168,0) -> 0
A169: 168 | D169: A | E169: =VLOOKUP(F169,X$2:Y196,2) -> 0.275 | F169: 8 | G169: =F169/30 -> 0.2666666667 | J169: =H169/F169*100 -> 0 | M169: =K169/F169*100 -> 0 | N169: =H169+K169 -> 0 | O169: =N169/60 -> 0 | P169: =O169/G169*100 -> 0 | Q169: =ROUNDDOWN(P169,0) -> 0
A170: 169 | D170: A | E170: =VLOOKUP(F170,X$2:Y197,2) -> 0.275 | F170: 8 | G170: =F170/30 -> 0.2666666667 | J170: =H170/F170*100 -> 0 | M170: =K170/F170*100 -> 0 | N170: =H170+K170 -> 0 | O170: =N170/60 -> 0 | P170: =O170/G170*100 -> 0 | Q170: =ROUNDDOWN(P170,0) -> 0
A171: 170 | D171: A | E171: =VLOOKUP(F171,X$2:Y198,2) -> 0.275 | F171: 8 | G171: =F171/30 -> 0.2666666667 | J171: =H171/F171*100 -> 0 | M171: =K171/F171*100 -> 0 | N171: =H171+K171 -> 0 | O171: =N171/60 -> 0 | P171: =O171/G171*100 -> 0 | Q171: =ROUNDDOWN(P171,0) -> 0
A172: 171 | D172: A | E172: =VLOOKUP(F172,X$2:Y199,2) -> 0.275 | F172: 8 | G172: =F172/30 -> 0.2666666667 | J172: =H172/F172*100 -> 0 | M172: =K172/F172*100 -> 0 | N172: =H172+K172 -> 0 | O172: =N172/60 -> 0 | P172: =O172/G172*100 -> 0 | Q172: =ROUNDDOWN(P172,0) -> 0
A173: 172 | D173: A | E173: =VLOOKUP(F173,X$2:Y200,2) -> 0.275 | F173: 8 | G173: =F173/30 -> 0.2666666667 | J173: =H173/F173*100 -> 0 | M173: =K173/F173*100 -> 0 | N173: =H173+K173 -> 0 | O173: =N173/60 -> 0 | P173: =O173/G173*100 -> 0 | Q173: =ROUNDDOWN(P173,0) -> 0
A174: 173 | D174: A | E174: =VLOOKUP(F174,X$2:Y201,2) -> 0.275 | F174: 8 | G174: =F174/30 -> 0.2666666667 | J174: =H174/F174*100 -> 0 | M174: =K174/F174*100 -> 0 | N174: =H174+K174 -> 0 | O174: =N174/60 -> 0 | P174: =O174/G174*100 -> 0 | Q174: =ROUNDDOWN(P174,0) -> 0
A175: 174 | D175: A | E175: =VLOOKUP(F175,X$2:Y202,2) -> 0.275 | F175: 8 | G175: =F175/30 -> 0.2666666667 | J175: =H175/F175*100 -> 0 | M175: =K175/F175*100 -> 0 | N175: =H175+K175 -> 0 | O175: =N175/60 -> 0 | P175: =O175/G175*100 -> 0 | Q175: =ROUNDDOWN(P175,0) -> 0
A176: 175 | D176: A | E176: =VLOOKUP(F176,X$2:Y203,2) -> 0.275 | F176: 8 | G176: =F176/30 -> 0.2666666667 | J176: =H176/F176*100 -> 0 | M176: =K176/F176*100 -> 0 | N176: =H176+K176 -> 0 | O176: =N176/60 -> 0 | P176: =O176/G176*100 -> 0 | Q176: =ROUNDDOWN(P176,0) -> 0
A177: 176 | D177: A | E177: =VLOOKUP(F177,X$2:Y204,2) -> 0.275 | F177: 8 | G177: =F177/30 -> 0.2666666667 | J177: =H177/F177*100 -> 0 | M177: =K177/F177*100 -> 0 | N177: =H177+K177 -> 0 | O177: =N177/60 -> 0 | P177: =O177/G177*100 -> 0 | Q177: =ROUNDDOWN(P177,0) -> 0
A178: 177 | D178: A | E178: =VLOOKUP(F178,X$2:Y205,2) -> 0.275 | F178: 8 | G178: =F178/30 -> 0.2666666667 | J178: =H178/F178*100 -> 0 | M178: =K178/F178*100 -> 0 | N178: =H178+K178 -> 0 | O178: =N178/60 -> 0 | P178: =O178/G178*100 -> 0 | Q178: =ROUNDDOWN(P178,0) -> 0
A179: 178 | D179: A | E179: =VLOOKUP(F179,X$2:Y206,2) -> 0.275 | F179: 8 | G179: =F179/30 -> 0.2666666667 | J179: =H179/F179*100 -> 0 | M179: =K179/F179*100 -> 0 | N179: =H179+K179 -> 0 | O179: =N179/60 -> 0 | P179: =O179/G179*100 -> 0 | Q179: =ROUNDDOWN(P179,0) -> 0
A180: 179 | D180: A | E180: =VLOOKUP(F180,X$2:Y207,2) -> 0.275 | F180: 8 | G180: =F180/30 -> 0.2666666667 | J180: =H180/F180*100 -> 0 | M180: =K180/F180*100 -> 0 | N180: =H180+K180 -> 0 | O180: =N180/60 -> 0 | P180: =O180/G180*100 -> 0 | Q180: =ROUNDDOWN(P180,0) -> 0
A181: 180 | D181: A | E181: =VLOOKUP(F181,X$2:Y208,2) -> 0.275 | F181: 8 | G181: =F181/30 -> 0.2666666667 | J181: =H181/F181*100 -> 0 | M181: =K181/F181*100 -> 0 | N181: =H181+K181 -> 0 | O181: =N181/60 -> 0 | P181: =O181/G181*100 -> 0 | Q181: =ROUNDDOWN(P181,0) -> 0
A182: 181 | D182: A | E182: =VLOOKUP(F182,X$2:Y209,2) -> 0.275 | F182: 8 | G182: =F182/30 -> 0.2666666667 | J182: =H182/F182*100 -> 0 | M182: =K182/F182*100 -> 0 | N182: =H182+K182 -> 0 | O182: =N182/60 -> 0 | P182: =O182/G182*100 -> 0 | Q182: =ROUNDDOWN(P182,0) -> 0
A183: 182 | D183: A | E183: =VLOOKUP(F183,X$2:Y210,2) -> 0.275 | F183: 8 | G183: =F183/30 -> 0.2666666667 | J183: =H183/F183*100 -> 0 | M183: =K183/F183*100 -> 0 | N183: =H183+K183 -> 0 | O183: =N183/60 -> 0 | P183: =O183/G183*100 -> 0 | Q183: =ROUNDDOWN(P183,0) -> 0
A184: 183 | D184: A | E184: =VLOOKUP(F184,X$2:Y211,2) -> 0.275 | F184: 8 | G184: =F184/30 -> 0.2666666667 | J184: =H184/F184*100 -> 0 | M184: =K184/F184*100 -> 0 | N184: =H184+K184 -> 0 | O184: =N184/60 -> 0 | P184: =O184/G184*100 -> 0 | Q184: =ROUNDDOWN(P184,0) -> 0
A185: 184 | D185: A | E185: =VLOOKUP(F185,X$2:Y212,2) -> 0.275 | F185: 8 | G185: =F185/30 -> 0.2666666667 | J185: =H185/F185*100 -> 0 | M185: =K185/F185*100 -> 0 | N185: =H185+K185 -> 0 | O185: =N185/60 -> 0 | P185: =O185/G185*100 -> 0 | Q185: =ROUNDDOWN(P185,0) -> 0
A186: 185 | D186: A | E186: =VLOOKUP(F186,X$2:Y213,2) -> 0.275 | F186: 8 | G186: =F186/30 -> 0.2666666667 | J186: =H186/F186*100 -> 0 | M186: =K186/F186*100 -> 0 | N186: =H186+K186 -> 0 | O186: =N186/60 -> 0 | P186: =O186/G186*100 -> 0 | Q186: =ROUNDDOWN(P186,0) -> 0
A187: 186 | D187: A | E187: =VLOOKUP(F187,X$2:Y214,2) -> 0.275 | F187: 8 | G187: =F187/30 -> 0.2666666667 | J187: =H187/F187*100 -> 0 | M187: =K187/F187*100 -> 0 | N187: =H187+K187 -> 0 | O187: =N187/60 -> 0 | P187: =O187/G187*100 -> 0 | Q187: =ROUNDDOWN(P187,0) -> 0
A188: 187 | D188: A | E188: =VLOOKUP(F188,X$2:Y215,2) -> 0.275 | F188: 8 | G188: =F188/30 -> 0.2666666667 | J188: =H188/F188*100 -> 0 | M188: =K188/F188*100 -> 0 | N188: =H188+K188 -> 0 | O188: =N188/60 -> 0 | P188: =O188/G188*100 -> 0 | Q188: =ROUNDDOWN(P188,0) -> 0
A189: 188 | D189: A | E189: =VLOOKUP(F189,X$2:Y216,2) -> 0.275 | F189: 8 | G189: =F189/30 -> 0.2666666667 | J189: =H189/F189*100 -> 0 | M189: =K189/F189*100 -> 0 | N189: =H189+K189 -> 0 | O189: =N189/60 -> 0 | P189: =O189/G189*100 -> 0 | Q189: =ROUNDDOWN(P189,0) -> 0
A190: 189 | D190: A | E190: =VLOOKUP(F190,X$2:Y217,2) -> 0.275 | F190: 8 | G190: =F190/30 -> 0.2666666667 | J190: =H190/F190*100 -> 0 | M190: =K190/F190*100 -> 0 | N190: =H190+K190 -> 0 | O190: =N190/60 -> 0 | P190: =O190/G190*100 -> 0 | Q190: =ROUNDDOWN(P190,0) -> 0
A191: 190 | D191: A | E191: =VLOOKUP(F191,X$2:Y218,2) -> 0.275 | F191: 8 | G191: =F191/30 -> 0.2666666667 | J191: =H191/F191*100 -> 0 | M191: =K191/F191*100 -> 0 | N191: =H191+K191 -> 0 | O191: =N191/60 -> 0 | P191: =O191/G191*100 -> 0 | Q191: =ROUNDDOWN(P191,0) -> 0
A192: 191 | D192: A | E192: =VLOOKUP(F192,X$2:Y219,2) -> 0.275 | F192: 8 | G192: =F192/30 -> 0.2666666667 | J192: =H192/F192*100 -> 0 | M192: =K192/F192*100 -> 0 | N192: =H192+K192 -> 0 | O192: =N192/60 -> 0 | P192: =O192/G192*100 -> 0 | Q192: =ROUNDDOWN(P192,0) -> 0
A193: 192 | D193: A | E193: =VLOOKUP(F193,X$2:Y220,2) -> 0.275 | F193: 8 | G193: =F193/30 -> 0.2666666667 | J193: =H193/F193*100 -> 0 | M193: =K193/F193*100 -> 0 | N193: =H193+K193 -> 0 | O193: =N193/60 -> 0 | P193: =O193/G193*100 -> 0 | Q193: =ROUNDDOWN(P193,0) -> 0
A194: 193 | D194: A | E194: =VLOOKUP(F194,X$2:Y221,2) -> 0.275 | F194: 8 | G194: =F194/30 -> 0.2666666667 | J194: =H194/F194*100 -> 0 | M194: =K194/F194*100 -> 0 | N194: =H194+K194 -> 0 | O194: =N194/60 -> 0 | P194: =O194/G194*100 -> 0 | Q194: =ROUNDDOWN(P194,0) -> 0
A195: 194 | D195: A | E195: =VLOOKUP(F195,X$2:Y222,2) -> 0.275 | F195: 8 | G195: =F195/30 -> 0.2666666667 | J195: =H195/F195*100 -> 0 | M195: =K195/F195*100 -> 0 | N195: =H195+K195 -> 0 | O195: =N195/60 -> 0 | P195: =O195/G195*100 -> 0 | Q195: =ROUNDDOWN(P195,0) -> 0
A196: 195 | D196: A | E196: =VLOOKUP(F196,X$2:Y223,2) -> 0.275 | F196: 8 | G196: =F196/30 -> 0.2666666667 | J196: =H196/F196*100 -> 0 | M196: =K196/F196*100 -> 0 | N196: =H196+K196 -> 0 | O196: =N196/60 -> 0 | P196: =O196/G196*100 -> 0 | Q196: =ROUNDDOWN(P196,0) -> 0
A197: 196 | D197: A | E197: =VLOOKUP(F197,X$2:Y224,2) -> 0.275 | F197: 8 | G197: =F197/30 -> 0.2666666667 | J197: =H197/F197*100 -> 0 | M197: =K197/F197*100 -> 0 | N197: =H197+K197 -> 0 | O197: =N197/60 -> 0 | P197: =O197/G197*100 -> 0 | Q197: =ROUNDDOWN(P197,0) -> 0
A198: 197 | D198: A | E198: =VLOOKUP(F198,X$2:Y225,2) -> 0.275 | F198: 8 | G198: =F198/30 -> 0.2666666667 | J198: =H198/F198*100 -> 0 | M198: =K198/F198*100 -> 0 | N198: =H198+K198 -> 0 | O198: =N198/60 -> 0 | P198: =O198/G198*100 -> 0 | Q198: =ROUNDDOWN(P198,0) -> 0
A199: 198 | D199: A | E199: =VLOOKUP(F199,X$2:Y226,2) -> 0.275 | F199: 8 | G199: =F199/30 -> 0.2666666667 | J199: =H199/F199*100 -> 0 | M199: =K199/F199*100 -> 0 | N199: =H199+K199 -> 0 | O199: =N199/60 -> 0 | P199: =O199/G199*100 -> 0 | Q199: =ROUNDDOWN(P199,0) -> 0
A200: 199 | D200: A | E200: =VLOOKUP(F200,X$2:Y227,2) -> 0.275 | F200: 8 | G200: =F200/30 -> 0.2666666667 | J200: =H200/F200*100 -> 0 | M200: =K200/F200*100 -> 0 | N200: =H200+K200 -> 0 | O200: =N200/60 -> 0 | P200: =O200/G200*100 -> 0 | Q200: =ROUNDDOWN(P200,0) -> 0
... 51 more rows

Sheet Groep B
B1: Datum | C1: GROEP B | E1: Moyenne | F1: te maken caramboles | G1: rating getal | H1: caramboles 1e partij | I1: hoogste serie 1e partij | J1: percentage 1e partij | K1: caramboles 2e partij | L1: hoogste serie 2e partij | M1: percentage 2e partij | N1: totaal caramboles | O1: gespeeld gemiddelde | P1: gespeeld percentage | Q1: Punten afgerond | R1: uitgenodigd Finale
A2: 1 | C2: Ab Klok | D2: B | E2: =VLOOKUP(F2,'Groep A'!X$2:Y124,2) -> 0.275 | F2: 8 | G2: =F2/30 -> 0.2666666667 | J2: =H2/F2*100 -> 0 | M2: =K2/F2*100 -> 0 | N2: =H2+K2 -> 0 | O2: =N2/60 -> 0 | P2: =O2/G2*100 -> 0 | Q2: =ROUNDDOWN(P2,0) -> 0
A3: 2 | C3: Abel Brijk | D3: B | E3: =VLOOKUP(F3,'Groep A'!X$2:Y120,2) -> 0.35 | F3: 10 | G3: =F3/30 -> 0.3333333333 | J3: =H3/F3*100 -> 0 | M3: =K3/F3*100 -> 0 | N3: =H3+K3 -> 0 | O3: =N3/60 -> 0 | P3: =O3/G3*100 -> 0 | Q3: =ROUNDDOWN(P3,0) -> 0
A4: 3 | C4: Ad Blaauw | D4: B | E4: =VLOOKUP(F4,'Groep A'!X$2:Y74,2) -> 0.484 | F4: 14 | G4: =F4/30 -> 0.4666666667 | J4: =H4/F4*100 -> 0 | M4: =K4/F4*100 -> 0 | N4: =H4+K4 -> 0 | O4: =N4/60 -> 0 | P4: =O4/G4*100 -> 0 | Q4: =ROUNDDOWN(P4,0) -> 0
A5: 4 | C5: Adam van Dijk | D5: B | E5: =VLOOKUP(F5,'Groep A'!X$2:Y128,2) -> 0.275 | F5: 8 | G5: =F5/30 -> 0.2666666667 | J5: =H5/F5*100 -> 0 | M5: =K5/F5*100 -> 0 | N5: =H5+K5 -> 0 | O5: =N5/60 -> 0 | P5: =O5/G5*100 -> 0 | Q5: =ROUNDDOWN(P5,0) -> 0
A6: 5 | C6: Adolf Erenstein | D6: B | E6: =VLOOKUP(F6,'Groep A'!X$2:Y36,2) -> 0.417 | F6: 12 | G6: =F6/30 -> 0.4 | J6: =H6/F6*100 -> 0 | M6: =K6/F6*100 -> 0 | N6: =H6+K6 -> 0 | O6: =N6/60 -> 0 | P6: =O6/G6*100 -> 0 | Q6: =ROUNDDOWN(P6,0) -> 0
A7: 6 | C7: Albert Dijkema | D7: B | E7: =VLOOKUP(F7,'Groep A'!X$2:Y156,2) -> 0.275 | F7: 8 | G7: =F7/30 -> 0.2666666667 | J7: =H7/F7*100 -> 0 | M7: =K7/F7*100 -> 0 | N7: =H7+K7 -> 0 | O7: =N7/60 -> 0 | P7: =O7/G7*100 -> 0 | Q7: =ROUNDDOWN(P7,0) -> 0
A8: 7 | C8: Albert Koehoorn | D8: B | E8: =VLOOKUP(F8,'Groep A'!X$2:Y98,2) -> 0.35 | F8: 10 | G8: =F8/30 -> 0.3333333333 | J8: =H8/F8*100 -> 0 | M8: =K8/F8*100 -> 0 | N8: =H8+K8 -> 0 | O8: =N8/60 -> 0 | P8: =O8/G8*100 -> 0 | Q8: =ROUNDDOWN(P8,0) -> 0
A9: 8 | C9: Alex Ufkes | D9: B | E9: =VLOOKUP(F9,'Groep A'!X$2:Y90,2) -> 0.275 | F9: 8 | G9: =F9/30 -> 0.2666666667 | J9: =H9/F9*100 -> 0 | M9: =K9/F9*100 -> 0 | N9: =H9+K9 -> 0 | O9: =N9/60 -> 0 | P9: =O9/G9*100 -> 0 | Q9: =ROUNDDOWN(P9,0) -> 0
A10: 9 | C10: Alex Watermulder | D10: B | E10: =VLOOKUP(F10,'Groep A'!X$2:Y80,2) -> 0.45 | F10: 13 | G10: =F10/30 -> 0.4333333333 | J10: =H10/F10*100 -> 0 | M10: =K10/F10*100 -> 0 | N10: =H10+K10 -> 0 | O10: =N10/60 -> 0 | P10: =O10/G10*100 -> 0 | Q10: =ROUNDDOWN(P10,0) -> 0
A11: 10 | C11: Alexander Hulshof | D11: B | E11: =VLOOKUP(F11,'Groep A'!X$2:Y66,2) -> 0.317 | F11: 9 | G11: =F11/30 -> 0.3 | J11: =H11/F11*100 -> 0 | M11: =K11/F11*100 -> 0 | N11: =H11+K11 -> 0 | O11: =N11/60 -> 0 | P11: =O11/G11*100 -> 0 | Q11: =ROUNDDOWN(P11,0) -> 0
A12: 11 | C12: Andries Middelbos | D12: B | E12: =VLOOKUP(F12,'Groep A'!X$2:Y64,2) -> 0.45 | F12: 13 | G12: =F12/30 -> 0.4333333333 | J12: =H12/F12*100 -> 0 | M12: =K12/F12*100 -> 0 | N12: =H12+K12 -> 0 | O12: =N12/60 -> 0 | P12: =O12/G12*100 -> 0 | Q12: =ROUNDDOWN(P12,0) -> 0
A13: 12 | C13: Andries van de Veen | D13: B | E13: =VLOOKUP(F13,'Groep A'!X$2:Y102,2) -> 0.317 | F13: 9 | G13: =F13/30 -> 0.3 | J13: =H13/F13*100 -> 0 | M13: =K13/F13*100 -> 0 | N13: =H13+K13 -> 0 | O13: =N13/60 -> 0 | P13: =O13/G13*100 -> 0 | Q13: =ROUNDDOWN(P13,0) -> 0
A14: 13 | C14: Anton Drenth | D14: B | E14: =VLOOKUP(F14,'Groep A'!X$2:Y94,2) -> 0.45 | F14: 13 | G14: =F14/30 -> 0.4333333333 | J14: =H14/F14*100 -> 0 | M14: =K14/F14*100 -> 0 | N14: =H14+K14 -> 0 | O14: =N14/60 -> 0 | P14: =O14/G14*100 -> 0 | Q14: =ROUNDDOWN(P14,0) -> 0
A15: 14 | C15: Arnold Keizer | D15: B | E15: =VLOOKUP(F15,'Groep A'!X$2:Y129,2) -> 0.275 | F15: 8 | G15: =F15/30 -> 0.2666666667 | J15: =H15/F15*100 -> 0 | M15: =K15/F15*100 -> 0 | N15: =H15+K15 -> 0 | O15: =N15/60 -> 0 | P15: =O15/G15*100 -> 0 | Q15: =ROUNDDOWN(P15,0) -> 0
A16: 15 | C16: Barry Verstegen | D16: B | E16: =VLOOKUP(F16,'Groep A'!X$2:Y40,2) -> 0.35 | F16: 10 | G16: =F16/30 -> 0.3333333333 | J16: =H16/F16*100 -> 0 | M16: =K16/F16*100 -> 0 | N16: =H16+K16 -> 0 | O16: =N16/60 -> 0 | P16: =O16/G16*100 -> 0 | Q16: =ROUNDDOWN(P16,0) -> 0
A17: 16 | C17: Bas Mulder | D17: B | E17: =VLOOKUP(F17,'Groep A'!X$2:Y85,2) -> 0.384 | F17: 11 | G17: =F17/30 -> 0.3666666667 | J17: =H17/F17*100 -> 0 | M17: =K17/F17*100 -> 0 | N17: =H17+K17 -> 0 | O17: =N17/60 -> 0 | P17: =O17/G17*100 -> 0 | Q17: =ROUNDDOWN(P17,0) -> 0
A18: 17 | C18: Bas Viel | D18: B | E18: =VLOOKUP(F18,'Groep A'!X$2:Y91,2) -> 0.317 | F18: 9 | G18: =F18/30 -> 0.3 | J18: =H18/F18*100 -> 0 | M18: =K18/F18*100 -> 0 | N18: =H18+K18 -> 0 | O18: =N18/60 -> 0 | P18: =O18/G18*100 -> 0 | Q18: =ROUNDDOWN(P18,0) -> 0
A19: 18 | C19: Bé van der Laan | D19: B | E19: =VLOOKUP(F19,'Groep A'!X$2:Y105,2) -> 0.384 | F19: 11 | G19: =F19/30 -> 0.3666666667 | J19: =H19/F19*100 -> 0 | M19: =K19/F19*100 -> 0 | N19: =H19+K19 -> 0 | O19: =N19/60 -> 0 | P19: =O19/G19*100 -> 0 | Q19: =ROUNDDOWN(P19,0) -> 0
A20: 19 | C20: Bé Vrieze | D20: B | E20: =VLOOKUP(F20,'Groep A'!X$2:Y74,2) -> 0.317 | F20: 9 | G20: =F20/30 -> 0.3 | J20: =H20/F20*100 -> 0 | M20: =K20/F20*100 -> 0 | N20: =H20+K20 -> 0 | O20: =N20/60 -> 0 | P20: =O20/G20*100 -> 0 | Q20: =ROUNDDOWN(P20,0) -> 0
A21: 20 | C21: Bennie de Ruiter | D21: B | E21: =VLOOKUP(F21,'Groep A'!X$2:Y68,2) -> 0.275 | F21: 8 | G21: =F21/30 -> 0.2666666667 | J21: =H21/F21*100 -> 0 | M21: =K21/F21*100 -> 0 | N21: =H21+K21 -> 0 | O21: =N21/60 -> 0 | P21: =O21/G21*100 -> 0 | Q21: =ROUNDDOWN(P21,0) -> 0
A22: 21 | C22: Bernard Besseling | D22: B | E22: =VLOOKUP(F22,'Groep A'!X$2:Y106,2) -> 0.275 | F22: 8 | G22: =F22/30 -> 0.2666666667 | J22: =H22/F22*100 -> 0 | M22: =K22/F22*100 -> 0 | N22: =H22+K22 -> 0 | O22: =N22/60 -> 0 | P22: =O22/G22*100 -> 0 | Q22: =ROUNDDOWN(P22,0) -> 0
A23: 22 | C23: Bernard Bos | D23: B | E23: =VLOOKUP(F23,'Groep A'!X$2:Y106,2) -> 0.384 | F23: 11 | G23: =F23/30 -> 0.3666666667 | J23: =H23/F23*100 -> 0 | M23: =K23/F23*100 -> 0 | N23: =H23+K23 -> 0 | O23: =N23/60 -> 0 | P23: =O23/G23*100 -> 0 | Q23: =ROUNDDOWN(P23,0) -> 0
A24: 23 | C24: Bernard Wesseling | D24: B | E24: =VLOOKUP(F24,'Groep A'!X$2:Y78,2) -> 0.275 | F24: 8 | G24: =F24/30 -> 0.2666666667 | J24: =H24/F24*100 -> 0 | M24: =K24/F24*100 -> 0 | N24: =H24+K24 -> 0 | O24: =N24/60 -> 0 | P24: =O24/G24*100 -> 0 | Q24: =ROUNDDOWN(P24,0) -> 0
A25: 24 | C25: Bert Dallinga | D25: B | E25: =VLOOKUP(F25,'Groep A'!X$2:Y30,2) -> 0.275 | F25: 8 | G25: =F25/30 -> 0.2666666667 | J25: =H25/F25*100 -> 0 | M25: =K25/F25*100 -> 0 | N25: =H25+K25 -> 0 | O25: =N25/60 -> 0 | P25: =O25/G25*100 -> 0 | Q25: =ROUNDDOWN(P25,0) -> 0
A26: 25 | C26: Bert de Jonge | D26: B | E26: =VLOOKUP(F26,'Groep A'!X$2:Y43,2) -> 0.45 | F26: 13 | G26: =F26/30 -> 0.4333333333 | J26: =H26/F26*100 -> 0 | M26: =K26/F26*100 -> 0 | N26: =H26+K26 -> 0 | O26: =N26/60 -> 0 | P26: =O26/G26*100 -> 0 | Q26: =ROUNDDOWN(P26,0) -> 0
A27: 26 | C27: Bert Komdeur | D27: B | E27: =VLOOKUP(F27,'Groep A'!X$2:Y58,2) -> 0.35 | F27: 10 | G27: =F27/30 -> 0.3333333333 | J27: =H27/F27*100 -> 0 | M27: =K27/F27*100 -> 0 | N27: =H27+K27 -> 0 | O27: =N27/60 -> 0 | P27: =O27/G27*100 -> 0 | Q27: =ROUNDDOWN(P27,0) -> 0
A28: 27 | C28: Bert Olthuis | D28: B | E28: =VLOOKUP(F28,'Groep A'!X$2:Y108,2) -> 0.275 | F28: 8 | G28: =F28/30 -> 0.2666666667 | J28: =H28/F28*100 -> 0 | M28: =K28/F28*100 -> 0 | N28: =H28+K28 -> 0 | O28: =N28/60 -> 0 | P28: =O28/G28*100 -> 0 | Q28: =ROUNDDOWN(P28,0) -> 0
A29: 28 | C29: Bert Wierenga | D29: B | E29: =VLOOKUP(F29,'Groep A'!X$2:Y107,2) -> 0.317 | F29: 9 | G29: =F29/30 -> 0.3 | J29: =H29/F29*100 -> 0 | M29: =K29/F29*100 -> 0 | N29: =H29+K29 -> 0 | O29: =N29/60 -> 0 | P29: =O29/G29*100 -> 0 | Q29: =ROUNDDOWN(P29,0) -> 0
A30: 29 | C30: Brian Reinert | D30: B | E30: =VLOOKUP(F30,'Groep A'!X$2:Y108,2) -> 0.317 | F30: 9 | G30: =F30/30 -> 0.3 | J30: =H30/F30*100 -> 0 | M30: =K30/F30*100 -> 0 | N30: =H30+K30 -> 0 | O30: =N30/60 -> 0 | P30: =O30/G30*100 -> 0 | Q30: =ROUNDDOWN(P30,0) -> 0
A31: 30 | C31: Caren Eling | D31: B | E31: =VLOOKUP(F31,'Groep A'!X$2:Y138,2) -> 0.275 | F31: 8 | G31: =F31/30 -> 0.2666666667 | J31: =H31/F31*100 -> 0 | M31: =K31/F31*100 -> 0 | N31: =H31+K31 -> 0 | O31: =N31/60 -> 0 | P31: =O31/G31*100 -> 0 | Q31: =ROUNDDOWN(P31,0) -> 0
A32: 31 | C32: Cees Doornbos | D32: B | E32: =VLOOKUP(F32,'Groep A'!X$2:Y109,2) -> 0.45 | F32: 13 | G32: =F32/30 -> 0.4333333333 | J32: =H32/F32*100 -> 0 | M32: =K32/F32*100 -> 0 | N32: =H32+K32 -> 0 | O32: =N32/60 -> 0 | P32: =O32/G32*100 -> 0 | Q32: =ROUNDDOWN(P32,0) -> 0
A33: 32 | C33: Co Kleppe | D33: B | E33: =VLOOKUP(F33,'Groep A'!X$2:Y100,2) -> 0.275 | F33: 8 | G33: =F33/30 -> 0.2666666667 | J33: =H33/F33*100 -> 0 | M33: =K33/F33*100 -> 0 | N33: =H33+K33 -> 0 | O33: =N33/60 -> 0 | P33: =O33/G33*100 -> 0 | Q33: =ROUNDDOWN(P33,0) -> 0
A34: 33 | C34: Cor Zeeman | D34: B | E34: =VLOOKUP(F34,'Groep A'!X$2:Y130,2) -> 0.275 | F34: 8 | G34: =F34/30 -> 0.2666666667 | J34: =H34/F34*100 -> 0 | M34: =K34/F34*100 -> 0 | N34: =H34+K34 -> 0 | O34: =N34/60 -> 0 | P34: =O34/G34*100 -> 0 | Q34: =ROUNDDOWN(P34,0) -> 0
A35: 34 | C35: Daniél Kerbof | D35: B | E35: =VLOOKUP(F35,'Groep A'!X$2:Y86,2) -> 0.35 | F35: 10 | G35: =F35/30 -> 0.3333333333 | J35: =H35/F35*100 -> 0 | M35: =K35/F35*100 -> 0 | N35: =H35+K35 -> 0 | O35: =N35/60 -> 0 | P35: =O35/G35*100 -> 0 | Q35: =ROUNDDOWN(P35,0) -> 0
A36: 35 | C36: Dennis de Jonge | D36: B | E36: =VLOOKUP(F36,'Groep A'!X$2:Y110,2) -> 0.384 | F36: 11 | G36: =F36/30 -> 0.3666666667 | J36: =H36/F36*100 -> 0 | M36: =K36/F36*100 -> 0 | N36: =H36+K36 -> 0 | O36: =N36/60 -> 0 | P36: =O36/G36*100 -> 0 | Q36: =ROUNDDOWN(P36,0) -> 0
A37: 36 | C37: Dennis Lengton | D37: B | E37: =VLOOKUP(F37,'Groep A'!X$2:Y111,2) -> 0.275 | F37: 8 | G37: =F37/30 -> 0.2666666667 | J37: =H37/F37*100 -> 0 | M37: =K37/F37*100 -> 0 | N37: =H37+K37 -> 0 | O37: =N37/60 -> 0 | P37: =O37/G37*100 -> 0 | Q37: =ROUNDDOWN(P37,0) -> 0
A38: 37 | C38: Derk Nieuwenhuis | D38: B | E38: =VLOOKUP(F38,'Groep A'!X$2:Y50,2) -> 0.317 | F38: 9 | G38: =F38/30 -> 0.3 | J38: =H38/F38*100 -> 0 | M38: =K38/F38*100 -> 0 | N38: =H38+K38 -> 0 | O38: =N38/60 -> 0 | P38: =O38/G38*100 -> 0 | Q38: =ROUNDDOWN(P38,0) -> 0
A39: 38 | C39: Derk Oosterhuis | D39: B | E39: =VLOOKUP(F39,'Groep A'!X$2:Y48,2) -> 0.275 | F39: 8 | G39: =F39/30 -> 0.2666666667 | J39: =H39/F39*100 -> 0 | M39: =K39/F39*100 -> 0 | N39: =H39+K39 -> 0 | O39: =N39/60 -> 0 | P39: =O39/G39*100 -> 0 | Q39: =ROUNDDOWN(P39,0) -> 0
A40: 39 | C40: Dirk Brakenhof | D40: B | E40: =VLOOKUP(F40,'Groep A'!X$2:Y60,2) -> 0.484 | F40: 14 | G40: =F40/30 -> 0.4666666667 | J40: =H40/F40*100 -> 0 | M40: =K40/F40*100 -> 0 | N40: =H40+K40 -> 0 | O40: =N40/60 -> 0 | P40: =O40/G40*100 -> 0 | Q40: =ROUNDDOWN(P40,0) -> 0
A41: 40 | C41: Ebo de Jonge | D41: B | E41: =VLOOKUP(F41,'Groep A'!X$2:Y112,2) -> 0.275 | F41: 8 | G41: =F41/30 -> 0.2666666667 | J41: =H41/F41*100 -> 0 | M41: =K41/F41*100 -> 0 | N41: =H41+K41 -> 0 | O41: =N41/60 -> 0 | P41: =O41/G41*100 -> 0 | Q41: =ROUNDDOWN(P41,0) -> 0
A42: 41 | C42: Edwin Kuipers | D42: B | E42: =VLOOKUP(F42,'Groep A'!X$2:Y113,2) -> 0.317 | F42: 9 | G42: =F42/30 -> 0.3 | J42: =H42/F42*100 -> 0 | M42: =K42/F42*100 -> 0 | N42: =H42+K42 -> 0 | O42: =N42/60 -> 0 | P42: =O42/G42*100 -> 0 | Q42: =ROUNDDOWN(P42,0) -> 0
A43: 42 | C43: Eefke Rops | D43: B | E43: =VLOOKUP(F43,'Groep A'!X$2:Y53,2) -> 0.317 | F43: 9 | G43: =F43/30 -> 0.3 | J43: =H43/F43*100 -> 0 | M43: =K43/F43*100 -> 0 | N43: =H43+K43 -> 0 | O43: =N43/60 -> 0 | P43: =O43/G43*100 -> 0 | Q43: =ROUNDDOWN(P43,0) -> 0
A44: 43 | C44: Egbert Kunst | D44: B | E44: =VLOOKUP(F44,'Groep A'!X$2:Y109,2) -> 0.275 | F44: 8 | G44: =F44/30 -> 0.2666666667 | J44: =H44/F44*100 -> 0 | M44: =K44/F44*100 -> 0 | N44: =H44+K44 -> 0 | O44: =N44/60 -> 0 | P44: =O44/G44*100 -> 0 | Q44: =ROUNDDOWN(P44,0) -> 0
A45: 44 | C45: Eisse Bolt | D45: B | E45: =VLOOKUP(F45,'Groep A'!X$2:Y62,2) -> 0.275 | F45: 8 | G45: =F45/30 -> 0.2666666667 | J45: =H45/F45*100 -> 0 | M45: =K45/F45*100 -> 0 | N45: =H45+K45 -> 0 | O45: =N45/60 -> 0 | P45: =O45/G45*100 -> 0 | Q45: =ROUNDDOWN(P45,0) -> 0
A46: 45 | C46: Ella Hilbolling | D46: B | E46: =VLOOKUP(F46,'Groep A'!X$2:Y80,2) -> 0.275 | F46: 8 | G46: =F46/30 -> 0.2666666667 | J46: =H46/F46*100 -> 0 | M46: =K46/F46*100 -> 0 | N46: =H46+K46 -> 0 | O46: =N46/60 -> 0 | P46: =O46/G46*100 -> 0 | Q46: =ROUNDDOWN(P46,0) -> 0
A47: 46 | C47: Eltjo Bos | D47: B | E47: =VLOOKUP(F47,'Groep A'!X$2:Y57,2) -> 0.384 | F47: 11 | G47: =F47/30 -> 0.3666666667 | J47: =H47/F47*100 -> 0 | M47: =K47/F47*100 -> 0 | N47: =H47+K47 -> 0 | O47: =N47/60 -> 0 | P47: =O47/G47*100 -> 0 | Q47: =ROUNDDOWN(P47,0) -> 0
A48: 47 | C48: Elzo Dijk | D48: B | E48: =VLOOKUP(F48,'Groep A'!X$2:Y114,2) -> 0.275 | F48: 8 | G48: =F48/30 -> 0.2666666667 | J48: =H48/F48*100 -> 0 | M48: =K48/F48*100 -> 0 | N48: =H48+K48 -> 0 | O48: =N48/60 -> 0 | P48: =O48/G48*100 -> 0 | Q48: =ROUNDDOWN(P48,0) -> 0
A49: 48 | C49: Elzo Lubbers | D49: B | E49: =VLOOKUP(F49,'Groep A'!X$2:Y115,2) -> 0.317 | F49: 9 | G49: =F49/30 -> 0.3 | J49: =H49/F49*100 -> 0 | M49: =K49/F49*100 -> 0 | N49: =H49+K49 -> 0 | O49: =N49/60 -> 0 | P49: =O49/G49*100 -> 0 | Q49: =ROUNDDOWN(P49,0) -> 0
A50: 49 | C50: Emiel Timmermans | D50: B | E50: =VLOOKUP(F50,'Groep A'!X$2:Y116,2) -> 0.35 | F50: 10 | G50: =F50/30 -> 0.3333333333 | J50: =H50/F50*100 -> 0 | M50: =K50/F50*100 -> 0 | N50: =H50+K50 -> 0 | O50: =N50/60 -> 0 | P50: =O50/G50*100 -> 0 | Q50: =ROUNDDOWN(P50,0) -> 0
A51: 50 | C51: Eppo Siemens | D51: B | E51: =VLOOKUP(F51,'Groep A'!X$2:Y94,2) -> 0.275 | F51: 8 | G51: =F51/30 -> 0.2666666667 | J51: =H51/F51*100 -> 0 | M51: =K51/F51*100 -> 0 | N51: =H51+K51 -> 0 | O51: =N51/60 -> 0 | P51: =O51/G51*100 -> 0 | Q51: =ROUNDDOWN(P51,0) -> 0
A52: 51 | C52: Eric Luttje | D52: B | E52: =VLOOKUP(F52,'Groep A'!X$2:Y164,2) -> 0.275 | F52: 8 | G52: =F52/30 -> 0.2666666667 | J52: =H52/F52*100 -> 0 | M52: =K52/F52*100 -> 0 | N52: =H52+K52 -> 0 | O52: =N52/60 -> 0 | P52: =O52/G52*100 -> 0 | Q52: =ROUNDDOWN(P52,0) -> 0
A53: 52 | C53: Evert Bos | D53: B | E53: =VLOOKUP(F53,'Groep A'!X$2:Y106,2) -> 0.275 | F53: 8 | G53: =F53/30 -> 0.2666666667 | J53: =H53/F53*100 -> 0 | M53: =K53/F53*100 -> 0 | N53: =H53+K53 -> 0 | O53: =N53/60 -> 0 | P53: =O53/G53*100 -> 0 | Q53: =ROUNDDOWN(P53,0) -> 0
A54: 53 | C54: Feike Moerman | D54: B | E54: =VLOOKUP(F54,'Groep A'!X$2:Y117,2) -> 0.275 | F54: 8 | G54: =F54/30 -> 0.2666666667 | J54: =H54/F54*100 -> 0 | M54: =K54/F54*100 -> 0 | N54: =H54+K54 -> 0 | O54: =N54/60 -> 0 | P54: =O54/G54*100 -> 0 | Q54: =ROUNDDOWN(P54,0) -> 0
A55: 54 | C55: Frans de Groot | D55: B | E55: =VLOOKUP(F55,'Groep A'!X$2:Y118,2) -> 0.275 | F55: 8 | G55: =F55/30 -> 0.2666666667 | J55: =H55/F55*100 -> 0 | M55: =K55/F55*100 -> 0 | N55: =H55+K55 -> 0 | O55: =N55/60 -> 0 | P55: =O55/G55*100 -> 0 | Q55: =ROUNDDOWN(P55,0) -> 0
A56: 55 | C56: Frans Mathies | D56: B | E56: =VLOOKUP(F56,'Groep A'!X$2:Y119,2) -> 0.417 | F56: 12 | G56: =F56/30 -> 0.4 | J56: =H56/F56*100 -> 0 | M56: =K56/F56*100 -> 0 | N56: =H56+K56 -> 0 | O56: =N56/60 -> 0 | P56: =O56/G56*100 -> 0 | Q56: =ROUNDDOWN(P56,0) -> 0
A57: 56 | C57: Fred Maas | D57: B | E57: =VLOOKUP(F57,'Groep A'!X$2:Y120,2) -> 0.317 | F57: 9 | G57: =F57/30 -> 0.3 | J57: =H57/F57*100 -> 0 | M57: =K57/F57*100 -> 0 | N57: =H57+K57 -> 0 | O57: =N57/60 -> 0 | P57: =O57/G57*100 -> 0 | Q57: =ROUNDDOWN(P57,0) -> 0
A58: 57 | C58: Fred Stok | D58: B | E58: =VLOOKUP(F58,'Groep A'!X$2:Y121,2) -> 0.275 | F58: 8 | G58: =F58/30 -> 0.2666666667 | J58: =H58/F58*100 -> 0 | M58: =K58/F58*100 -> 0 | N58: =H58+K58 -> 0 | O58: =N58/60 -> 0 | P58: =O58/G58*100 -> 0 | Q58: =ROUNDDOWN(P58,0) -> 0
A59: 58 | C59: G. Woldhuis | D59: B | E59: =VLOOKUP(F59,'Groep A'!X$2:Y126,2) -> 0.384 | F59: 11 | G59: =F59/30 -> 0.3666666667 | J59: =H59/F59*100 -> 0 | M59: =K59/F59*100 -> 0 | N59: =H59+K59 -> 0 | O59: =N59/60 -> 0 | P59: =O59/G59*100 -> 0 | Q59: =ROUNDDOWN(P59,0) -> 0
A60: 59 | C60: Geert Bos Junior | D60: B | E60: =VLOOKUP(F60,'Groep A'!X$2:Y131,2) -> 0.317 | F60: 9 | G60: =F60/30 -> 0.3 | J60: =H60/F60*100 -> 0 | M60: =K60/F60*100 -> 0 | N60: =H60+K60 -> 0 | O60: =N60/60 -> 0 | P60: =O60/G60*100 -> 0 | Q60: =ROUNDDOWN(P60,0) -> 0
A61: 60 | C61: Geert Hoekstra | D61: B | E61: =VLOOKUP(F61,'Groep A'!X$2:Y72,2) -> 0.275 | F61: 8 | G61: =F61/30 -> 0.2666666667 | J61: =H61/F61*100 -> 0 | M61: =K61/F61*100 -> 0 | N61: =H61+K61 -> 0 | O61: =N61/60 -> 0 | P61: =O61/G61*100 -> 0 | Q61: =ROUNDDOWN(P61,0) -> 0
A62: 61 | C62: Geert Jager | D62: B | E62: =VLOOKUP(F62,'Groep A'!X$2:Y122,2) -> 0.275 | F62: 8 | G62: =F62/30 -> 0.2666666667 | J62: =H62/F62*100 -> 0 | M62: =K62/F62*100 -> 0 | N62: =H62+K62 -> 0 | O62: =N62/60 -> 0 | P62: =O62/G62*100 -> 0 | Q62: =ROUNDDOWN(P62,0) -> 0
A63: 62 | C63: Gerardus Engelage | D63: B | E63: =VLOOKUP(F63,'Groep A'!X$2:Y123,2) -> 0.275 | F63: 8 | G63: =F63/30 -> 0.2666666667 | J63: =H63/F63*100 -> 0 | M63: =K63/F63*100 -> 0 | N63: =H63+K63 -> 0 | O63: =N63/60 -> 0 | P63: =O63/G63*100 -> 0 | Q63: =ROUNDDOWN(P63,0) -> 0
A64: 63 | C64: Gerrie Drenth | D64: B | E64: =VLOOKUP(F64,'Groep A'!X$2:Y166,2) -> 0.275 | F64: 8 | G64: =F64/30 -> 0.2666666667 | J64: =H64/F64*100 -> 0 | M64: =K64/F64*100 -> 0 | N64: =H64+K64 -> 0 | O64: =N64/60 -> 0 | P64: =O64/G64*100 -> 0 | Q64: =ROUNDDOWN(P64,0) -> 0
A65: 64 | C65: Gerrit van Krimpen | D65: B | E65: =VLOOKUP(F65,'Groep A'!X$2:Y65,2) -> 0.45 | F65: 13 | G65: =F65/30 -> 0.4333333333 | J65: =H65/F65*100 -> 0 | M65: =K65/F65*100 -> 0 | N65: =H65+K65 -> 0 | O65: =N65/60 -> 0 | P65: =O65/G65*100 -> 0 | Q65: =ROUNDDOWN(P65,0) -> 0
A66: 65 | C66: H. Bisschop | D66: B | E66: =VLOOKUP(F66,'Groep A'!X$2:Y124,2) -> 0.384 | F66: 11 | G66: =F66/30 -> 0.3666666667 | J66: =H66/F66*100 -> 0 | M66: =K66/F66*100 -> 0 | N66: =H66+K66 -> 0 | O66: =N66/60 -> 0 | P66: =O66/G66*100 -> 0 | Q66: =ROUNDDOWN(P66,0) -> 0
A67: 66 | C67: Han Felkers | D67: B | E67: =VLOOKUP(F67,'Groep A'!X$2:Y167,2) -> 0.45 | F67: 13 | G67: =F67/30 -> 0.4333333333 | J67: =H67/F67*100 -> 0 | M67: =K67/F67*100 -> 0 | N67: =H67+K67 -> 0 | O67: =N67/60 -> 0 | P67: =O67/G67*100 -> 0 | Q67: =ROUNDDOWN(P67,0) -> 0
A68: 67 | C68: Hans Loer | D68: B | E68: =VLOOKUP(F68,'Groep A'!X$2:Y101,2) -> 0.317 | F68: 9 | G68: =F68/30 -> 0.3 | J68: =H68/F68*100 -> 0 | M68: =K68/F68*100 -> 0 | N68: =H68+K68 -> 0 | O68: =N68/60 -> 0 | P68: =O68/G68*100 -> 0 | Q68: =ROUNDDOWN(P68,0) -> 0
A69: 68 | C69: Hans van Erp | D69: B | E69: =VLOOKUP(F69,'Groep A'!X$2:Y148,2) -> 0.275 | F69: 8 | G69: =F69/30 -> 0.2666666667 | J69: =H69/F69*100 -> 0 | M69: =K69/F69*100 -> 0 | N69: =H69+K69 -> 0 | O69: =N69/60 -> 0 | P69: =O69/G69*100 -> 0 | Q69: =ROUNDDOWN(P69,0) -> 0
A70: 69 | C70: Harm Jan Speelman | D70: B | E70: =VLOOKUP(F70,'Groep A'!X$2:Y118,2) -> 0.384 | F70: 11 | G70: =F70/30 -> 0.3666666667 | J70: =H70/F70*100 -> 0 | M70: =K70/F70*100 -> 0 | N70: =H70+K70 -> 0 | O70: =N70/60 -> 0 | P70: =O70/G70*100 -> 0 | Q70: =ROUNDDOWN(P70,0) -> 0
A71: 70 | C71: Harm Koolhof | D71: B | E71: =VLOOKUP(F71,'Groep A'!X$2:Y73,2) -> 0.275 | F71: 8 | G71: =F71/30 -> 0.2666666667 | J71: =H71/F71*100 -> 0 | M71: =K71/F71*100 -> 0 | N71: =H71+K71 -> 0 | O71: =N71/60 -> 0 | P71: =O71/G71*100 -> 0 | Q71: =ROUNDDOWN(P71,0) -> 0
A72: 71 | C72: Harmie Evenhuis | D72: B | E72: =VLOOKUP(F72,'Groep A'!X$2:Y122,2) -> 0.317 | F72: 9 | G72: =F72/30 -> 0.3 | J72: =H72/F72*100 -> 0 | M72: =K72/F72*100 -> 0 | N72: =H72+K72 -> 0 | O72: =N72/60 -> 0 | P72: =O72/G72*100 -> 0 | Q72: =ROUNDDOWN(P72,0) -> 0
A73: 72 | C73: Harrie Huisman | D73: B | E73: =VLOOKUP(F73,'Groep A'!X$2:Y90,2) -> 0.384 | F73: 11 | G73: =F73/30 -> 0.3666666667 | J73: =H73/F73*100 -> 0 | M73: =K73/F73*100 -> 0 | N73: =H73+K73 -> 0 | O73: =N73/60 -> 0 | P73: =O73/G73*100 -> 0 | Q73: =ROUNDDOWN(P73,0) -> 0
A74: 73 | C74: Harrie Lulofs | D74: B | E74: =VLOOKUP(F74,'Groep A'!X$2:Y72,2) -> 0.517 | F74: 15 | G74: =F74/30 -> 0.5 | J74: =H74/F74*100 -> 0 | M74: =K74/F74*100 -> 0 | N74: =H74+K74 -> 0 | O74: =N74/60 -> 0 | P74: =O74/G74*100 -> 0 | Q74: =ROUNDDOWN(P74,0) -> 0
A75: 74 | C75: Harrie Molema | D75: B | E75: =VLOOKUP(F75,'Groep A'!X$2:Y84,2) -> 0.35 | F75: 10 | G75: =F75/30 -> 0.3333333333 | J75: =H75/F75*100 -> 0 | M75: =K75/F75*100 -> 0 | N75: =H75+K75 -> 0 | O75: =N75/60 -> 0 | P75: =O75/G75*100 -> 0 | Q75: =ROUNDDOWN(P75,0) -> 0
A76: 75 | C76: Hendrik Dijkstra | D76: B | E76: =VLOOKUP(F76,'Groep A'!X$2:Y168,2) -> 0.275 | F76: 8 | G76: =F76/30 -> 0.2666666667 | J76: =H76/F76*100 -> 0 | M76: =K76/F76*100 -> 0 | N76: =H76+K76 -> 0 | O76: =N76/60 -> 0 | P76: =O76/G76*100 -> 0 | Q76: =ROUNDDOWN(P76,0) -> 0
A77: 76 | C77: Hendrik Sloot | D77: B | E77: =VLOOKUP(F77,'Groep A'!X$2:Y149,2) -> 0.417 | F77: 12 | G77: =F77/30 -> 0.4 | J77: =H77/F77*100 -> 0 | M77: =K77/F77*100 -> 0 | N77: =H77+K77 -> 0 | O77: =N77/60 -> 0 | P77: =O77/G77*100 -> 0 | Q77: =ROUNDDOWN(P77,0) -> 0
A78: 77 | C78: Henk Blaauw | D78: B | E78: =VLOOKUP(F78,'Groep A'!X$2:Y125,2) -> 0.275 | F78: 8 | G78: =F78/30 -> 0.2666666667 | J78: =H78/F78*100 -> 0 | M78: =K78/F78*100 -> 0 | N78: =H78+K78 -> 0 | O78: =N78/60 -> 0 | P78: =O78/G78*100 -> 0 | Q78: =ROUNDDOWN(P78,0) -> 0
A79: 78 | C79: Henk Borghuis | D79: B | E79: =VLOOKUP(F79,'Groep A'!X$2:Y152,2) -> 0.384 | F79: 11 | G79: =F79/30 -> 0.3666666667 | J79: =H79/F79*100 -> 0 | M79: =K79/F79*100 -> 0 | N79: =H79+K79 -> 0 | O79: =N79/60 -> 0 | P79: =O79/G79*100 -> 0 | Q79: =ROUNDDOWN(P79,0) -> 0
A80: 79 | C80: Henk Haaijer | D80: B | E80: =VLOOKUP(F80,'Groep A'!X$2:Y51,2) -> 0.275 | F80: 8 | G80: =F80/30 -> 0.2666666667 | J80: =H80/F80*100 -> 0 | M80: =K80/F80*100 -> 0 | N80: =H80+K80 -> 0 | O80: =N80/60 -> 0 | P80: =O80/G80*100 -> 0 | Q80: =ROUNDDOWN(P80,0) -> 0
A81: 80 | C81: Henk Hofman | D81: B | E81: =VLOOKUP(F81,'Groep A'!X$2:Y169,2) -> 0.35 | F81: 10 | G81: =F81/30 -> 0.3333333333 | J81: =H81/F81*100 -> 0 | M81: =K81/F81*100 -> 0 | N81: =H81+K81 -> 0 | O81: =N81/60 -> 0 | P81: =O81/G81*100 -> 0 | Q81: =ROUNDDOWN(P81,0) -> 0
A82: 81 | C82: Henk Knol | D82: B | E82: =VLOOKUP(F82,'Groep A'!X$2:Y116,2) -> 0.275 | F82: 8 | G82: =F82/30 -> 0.2666666667 | J82: =H82/F82*100 -> 0 | M82: =K82/F82*100 -> 0 | N82: =H82+K82 -> 0 | O82: =N82/60 -> 0 | P82: =O82/G82*100 -> 0 | Q82: =ROUNDDOWN(P82,0) -> 0
A83: 82 | C83: Henk Radsma | D83: B | E83: =VLOOKUP(F83,'Groep A'!X$2:Y170,2) -> 0.417 | F83: 12 | G83: =F83/30 -> 0.4 | J83: =H83/F83*100 -> 0 | M83: =K83/F83*100 -> 0 | N83: =H83+K83 -> 0 | O83: =N83/60 -> 0 | P83: =O83/G83*100 -> 0 | Q83: =ROUNDDOWN(P83,0) -> 0
A84: 83 | C84: Henk Smid | D84: B | E84: =VLOOKUP(F84,'Groep A'!X$2:Y150,2) -> 0.384 | F84: 11 | G84: =F84/30 -> 0.3666666667 | J84: =H84/F84*100 -> 0 | M84: =K84/F84*100 -> 0 | N84: =H84+K84 -> 0 | O84: =N84/60 -> 0 | P84: =O84/G84*100 -> 0 | Q84: =ROUNDDOWN(P84,0) -> 0
A85: 84 | C85: Henk Tammes | D85: B | E85: =VLOOKUP(F85,'Groep A'!X$2:Y171,2) -> 0.484 | F85: 14 | G85: =F85/30 -> 0.4666666667 | J85: =H85/F85*100 -> 0 | M85: =K85/F85*100 -> 0 | N85: =H85+K85 -> 0 | O85: =N85/60 -> 0 | P85: =O85/G85*100 -> 0 | Q85: =ROUNDDOWN(P85,0) -> 0
A86: 85 | C86: Henk van der Woude | D86: B | E86: =VLOOKUP(F86,'Groep A'!X$2:Y74,2) -> 0.35 | F86: 10 | G86: =F86/30 -> 0.3333333333 | J86: =H86/F86*100 -> 0 | M86: =K86/F86*100 -> 0 | N86: =H86+K86 -> 0 | O86: =N86/60 -> 0 | P86: =O86/G86*100 -> 0 | Q86: =ROUNDDOWN(P86,0) -> 0
A87: 86 | C87: Hennie Weessies | D87: B | E87: =VLOOKUP(F87,'Groep A'!X$2:Y172,2) -> 0.275 | F87: 8 | G87: =F87/30 -> 0.2666666667 | J87: =H87/F87*100 -> 0 | M87: =K87/F87*100 -> 0 | N87: =H87+K87 -> 0 | O87: =N87/60 -> 0 | P87: =O87/G87*100 -> 0 | Q87: =ROUNDDOWN(P87,0) -> 0
A88: 87 | C88: Herman Kosse | D88: B | E88: =VLOOKUP(F88,'Groep A'!X$2:Y136,2) -> 0.417 | F88: 12 | G88: =F88/30 -> 0.4 | J88: =H88/F88*100 -> 0 | M88: =K88/F88*100 -> 0 | N88: =H88+K88 -> 0 | O88: =N88/60 -> 0 | P88: =O88/G88*100 -> 0 | Q88: =ROUNDDOWN(P88,0) -> 0
A89: 88 | C89: Hindrik Schuur | D89: B | E89: =VLOOKUP(F89,'Groep A'!X$2:Y173,2) -> 0.317 | F89: 9 | G89: =F89/30 -> 0.3 | J89: =H89/F89*100 -> 0 | M89: =K89/F89*100 -> 0 | N89: =H89+K89 -> 0 | O89: =N89/60 -> 0 | P89: =O89/G89*100 -> 0 | Q89: =ROUNDDOWN(P89,0) -> 0
A90: 89 | C90: Ina Blaauw | D90: B | E90: =VLOOKUP(F90,'Groep A'!X$2:Y174,2) -> 0.275 | F90: 8 | G90: =F90/30 -> 0.2666666667 | J90: =H90/F90*100 -> 0 | M90: =K90/F90*100 -> 0 | N90: =H90+K90 -> 0 | O90: =N90/60 -> 0 | P90: =O90/G90*100 -> 0 | Q90: =ROUNDDOWN(P90,0) -> 0
A91: 90 | C91: Jack Hamming | D91: B | E91: =VLOOKUP(F91,'Groep A'!X$2:Y98,2) -> 0.317 | F91: 9 | G91: =F91/30 -> 0.3 | J91: =H91/F91*100 -> 0 | M91: =K91/F91*100 -> 0 | N91: =H91+K91 -> 0 | O91: =N91/60 -> 0 | P91: =O91/G91*100 -> 0 | Q91: =ROUNDDOWN(P91,0) -> 0
A92: 91 | C92: Jack Hulshof | D92: B | E92: =VLOOKUP(F92,'Groep A'!X$2:Y175,2) -> 0.317 | F92: 9 | G92: =F92/30 -> 0.3 | J92: =H92/F92*100 -> 0 | M92: =K92/F92*100 -> 0 | N92: =H92+K92 -> 0 | O92: =N92/60 -> 0 | P92: =O92/G92*100 -> 0 | Q92: =ROUNDDOWN(P92,0) -> 0
A93: 92 | C93: Jack van de Rijst | D93: B | E93: =VLOOKUP(F93,'Groep A'!X$2:Y176,2) -> 0.417 | F93: 12 | G93: =F93/30 -> 0.4 | J93: =H93/F93*100 -> 0 | M93: =K93/F93*100 -> 0 | N93: =H93+K93 -> 0 | O93: =N93/60 -> 0 | P93: =O93/G93*100 -> 0 | Q93: =ROUNDDOWN(P93,0) -> 0
A94: 93 | C94: Jack Venema | D94: B | E94: =VLOOKUP(F94,'Groep A'!X$2:Y177,2) -> 0.317 | F94: 9 | G94: =F94/30 -> 0.3 | J94: =H94/F94*100 -> 0 | M94: =K94/F94*100 -> 0 | N94: =H94+K94 -> 0 | O94: =N94/60 -> 0 | P94: =O94/G94*100 -> 0 | Q94: =ROUNDDOWN(P94,0) -> 0
A95: 94 | C95: Jacob Posthumus | D95: B | E95: =VLOOKUP(F95,'Groep A'!X$2:Y151,2) -> 0.275 | F95: 8 | G95: =F95/30 -> 0.2666666667 | J95: =H95/F95*100 -> 0 | M95: =K95/F95*100 -> 0 | N95: =H95+K95 -> 0 | O95: =N95/60 -> 0 | P95: =O95/G95*100 -> 0 | Q95: =ROUNDDOWN(P95,0) -> 0
A96: 95 | C96: Jan Berendsen | D96: B | E96: =VLOOKUP(F96,'Groep A'!X$2:Y152,2) -> 0.275 | F96: 8 | G96: =F96/30 -> 0.2666666667 | J96: =H96/F96*100 -> 0 | M96: =K96/F96*100 -> 0 | N96: =H96+K96 -> 0 | O96: =N96/60 -> 0 | P96: =O96/G96*100 -> 0 | Q96: =ROUNDDOWN(P96,0) -> 0
A97: 96 | C97: Jan Boer | D97: B | E97: =VLOOKUP(F97,'Groep A'!X$2:Y178,2) -> 0.45 | F97: 13 | G97: =F97/30 -> 0.4333333333 | J97: =H97/F97*100 -> 0 | M97: =K97/F97*100 -> 0 | N97: =H97+K97 -> 0 | O97: =N97/60 -> 0 | P97: =O97/G97*100 -> 0 | Q97: =ROUNDDOWN(P97,0) -> 0
A98: 97 | C98: Jan Boltjes | D98: B | E98: =VLOOKUP(F98,'Groep A'!X$2:Y124,2) -> 0.317 | F98: 9 | G98: =F98/30 -> 0.3 | J98: =H98/F98*100 -> 0 | M98: =K98/F98*100 -> 0 | N98: =H98+K98 -> 0 | O98: =N98/60 -> 0 | P98: =O98/G98*100 -> 0 | Q98: =ROUNDDOWN(P98,0) -> 0
A99: 98 | C99: Jan Colly | D99: B | E99: =VLOOKUP(F99,'Groep A'!X$2:Y96,2) -> 0.317 | F99: 9 | G99: =F99/30 -> 0.3 | J99: =H99/F99*100 -> 0 | M99: =K99/F99*100 -> 0 | N99: =H99+K99 -> 0 | O99: =N99/60 -> 0 | P99: =O99/G99*100 -> 0 | Q99: =ROUNDDOWN(P99,0) -> 0
A100: 99 | C100: Jan Dallinga | D100: B | E100: =VLOOKUP(F100,'Groep A'!X$2:Y153,2) -> 0.275 | F100: 8 | G100: =F100/30 -> 0.2666666667 | J100: =H100/F100*100 -> 0 | M100: =K100/F100*100 -> 0 | N100: =H100+K100 -> 0 | O100: =N100/60 -> 0 | P100: =O100/G100*100 -> 0 | Q100: =ROUNDDOWN(P100,0) -> 0
A101: 100 | C101: Jan Eggengoor | D101: B | E101: =VLOOKUP(F101,'Groep A'!X$2:Y132,2) -> 0.484 | F101: 14 | G101: =F101/30 -> 0.4666666667 | J101: =H101/F101*100 -> 0 | M101: =K101/F101*100 -> 0 | N101: =H101+K101 -> 0 | O101: =N101/60 -> 0 | P101: =O101/G101*100 -> 0 | Q101: =ROUNDDOWN(P101,0) -> 0
A102: 101 | C102: Jan Feikens | D102: B | E102: =VLOOKUP(F102,'Groep A'!X$2:Y133,2) -> 0.417 | F102: 12 | G102: =F102/30 -> 0.4 | J102: =H102/F102*100 -> 0 | M102: =K102/F102*100 -> 0 | N102: =H102+K102 -> 0 | O102: =N102/60 -> 0 | P102: =O102/G102*100 -> 0 | Q102: =ROUNDDOWN(P102,0) -> 0
A103: 102 | C103: Jan Glas | D103: B | E103: =VLOOKUP(F103,'Groep A'!X$2:Y134,2) -> 0.275 | F103: 8 | G103: =F103/30 -> 0.2666666667 | J103: =H103/F103*100 -> 0 | M103: =K103/F103*100 -> 0 | N103: =H103+K103 -> 0 | O103: =N103/60 -> 0 | P103: =O103/G103*100 -> 0 | Q103: =ROUNDDOWN(P103,0) -> 0
A104: 103 | C104: Jan Goossens | D104: B | E104: =VLOOKUP(F104,'Groep A'!X$2:Y103,2) -> 0.275 | F104: 8 | G104: =F104/30 -> 0.2666666667 | J104: =H104/F104*100 -> 0 | M104: =K104/F104*100 -> 0 | N104: =H104+K104 -> 0 | O104: =N104/60 -> 0 | P104: =O104/G104*100 -> 0 | Q104: =ROUNDDOWN(P104,0) -> 0
A105: 104 | C105: Jan Hadderingh | D105: B | E105: =VLOOKUP(F105,'Groep A'!X$2:Y64,2) -> 0.45 | F105: 13 | G105: =F105/30 -> 0.4333333333 | J105: =H105/F105*100 -> 0 | M105: =K105/F105*100 -> 0 | N105: =H105+K105 -> 0 | O105: =N105/60 -> 0 | P105: =O105/G105*100 -> 0 | Q105: =ROUNDDOWN(P105,0) -> 0
A106: 105 | C106: Jan Hidding | D106: B | E106: =VLOOKUP(F106,'Groep A'!X$2:Y118,2) -> 0.417 | F106: 12 | G106: =F106/30 -> 0.4 | J106: =H106/F106*100 -> 0 | M106: =K106/F106*100 -> 0 | N106: =H106+K106 -> 0 | O106: =N106/60 -> 0 | P106: =O106/G106*100 -> 0 | Q106: =ROUNDDOWN(P106,0) -> 0
A107: 106 | C107: Jan Koetje | D107: B | E107: =VLOOKUP(F107,'Groep A'!X$2:Y126,2) -> 0.35 | F107: 10 | G107: =F107/30 -> 0.3333333333 | J107: =H107/F107*100 -> 0 | M107: =K107/F107*100 -> 0 | N107: =H107+K107 -> 0 | O107: =N107/60 -> 0 | P107: =O107/G107*100 -> 0 | Q107: =ROUNDDOWN(P107,0) -> 0
A108: 107 | C108: Jan Kruijer | D108: B | E108: =VLOOKUP(F108,'Groep A'!X$2:Y56,2) -> 0.275 | F108: 8 | G108: =F108/30 -> 0.2666666667 | J108: =H108/F108*100 -> 0 | M108: =K108/F108*100 -> 0 | N108: =H108+K108 -> 0 | O108: =N108/60 -> 0 | P108: =O108/G108*100 -> 0 | Q108: =ROUNDDOWN(P108,0) -> 0
A109: 108 | C109: Jan Lanting | D109: B | E109: =VLOOKUP(F109,'Groep A'!X$2:Y135,2) -> 0.35 | F109: 10 | G109: =F109/30 -> 0.3333333333 | J109: =H109/F109*100 -> 0 | M109: =K109/F109*100 -> 0 | N109: =H109+K109 -> 0 | O109: =N109/60 -> 0 | P109: =O109/G109*100 -> 0 | Q109: =ROUNDDOWN(P109,0) -> 0
A110: 109 | C110: Jan Olsder | D110: B | E110: =VLOOKUP(F110,'Groep A'!X$2:Y180,2) -> 0.384 | F110: 11 | G110: =F110/30 -> 0.3666666667 | J110: =H110/F110*100 -> 0 | M110: =K110/F110*100 -> 0 | N110: =H110+K110 -> 0 | O110: =N110/60 -> 0 | P110: =O110/G110*100 -> 0 | Q110: =ROUNDDOWN(P110,0) -> 0
A111: 110 | C111: Jan Poot | D111: B | E111: =VLOOKUP(F111,'Groep A'!X$2:Y181,2) -> 0.384 | F111: 11 | G111: =F111/30 -> 0.3666666667 | J111: =H111/F111*100 -> 0 | M111: =K111/F111*100 -> 0 | N111: =H111+K111 -> 0 | O111: =N111/60 -> 0 | P111: =O111/G111*100 -> 0 | Q111: =ROUNDDOWN(P111,0) -> 0
A112: 111 | C112: Jan Post | D112: B | E112: =VLOOKUP(F112,'Groep A'!X$2:Y92,2) -> 0.275 | F112: 8 | G112: =F112/30 -> 0.2666666667 | J112: =H112/F112*100 -> 0 | M112: =K112/F112*100 -> 0 | N112: =H112+K112 -> 0 | O112: =N112/60 -> 0 | P112: =O112/G112*100 -> 0 | Q112: =ROUNDDOWN(P112,0) -> 0
A113: 112 | C113: Jan Rozenveld | D113: B | E113: =VLOOKUP(F113,'Groep A'!X$2:Y32,2) -> 0.417 | F113: 12 | G113: =F113/30 -> 0.4 | J113: =H113/F113*100 -> 0 | M113: =K113/F113*100 -> 0 | N113: =H113+K113 -> 0 | O113: =N113/60 -> 0 | P113: =O113/G113*100 -> 0 | Q113: =ROUNDDOWN(P113,0) -> 0
A114: 113 | C114: Jan Schikker | D114: B | E114: =VLOOKUP(F114,'Groep A'!X$2:Y100,2) -> 0.275 | F114: 8 | G114: =F114/30 -> 0.2666666667 | J114: =H114/F114*100 -> 0 | M114: =K114/F114*100 -> 0 | N114: =H114+K114 -> 0 | O114: =N114/60 -> 0 | P114: =O114/G114*100 -> 0 | Q114: =ROUNDDOWN(P114,0) -> 0
A115: 114 | C115: Jan Schiphorst | D115: B | E115: =VLOOKUP(F115,'Groep A'!X$2:Y70,2) -> 0.275 | F115: 8 | G115: =F115/30 -> 0.2666666667 | J115: =H115/F115*100 -> 0 | M115: =K115/F115*100 -> 0 | N115: =H115+K115 -> 0 | O115: =N115/60 -> 0 | P115: =O115/G115*100 -> 0 | Q115: =ROUNDDOWN(P115,0) -> 0
A116: 115 | C116: Jan Sietsma | D116: B | E116: =VLOOKUP(F116,'Groep A'!X$2:Y112,2) -> 0.417 | F116: 12 | G116: =F116/30 -> 0.4 | J116: =H116/F116*100 -> 0 | M116: =K116/F116*100 -> 0 | N116: =H116+K116 -> 0 | O116: =N116/60 -> 0 | P116: =O116/G116*100 -> 0 | Q116: =ROUNDDOWN(P116,0) -> 0
A117: 116 | C117: Jan Tepper | D117: B | E117: =VLOOKUP(F117,'Groep A'!X$2:Y78,2) -> 0.317 | F117: 9 | G117: =F117/30 -> 0.3 | J117: =H117/F117*100 -> 0 | M117: =K117/F117*100 -> 0 | N117: =H117+K117 -> 0 | O117: =N117/60 -> 0 | P117: =O117/G117*100 -> 0 | Q117: =ROUNDDOWN(P117,0) -> 0
A118: 117 | C118: Jan Venema | D118: B | E118: =VLOOKUP(F118,'Groep A'!X$2:Y182,2) -> 0.384 | F118: 11 | G118: =F118/30 -> 0.3666666667 | J118: =H118/F118*100 -> 0 | M118: =K118/F118*100 -> 0 | N118: =H118+K118 -> 0 | O118: =N118/60 -> 0 | P118: =O118/G118*100 -> 0 | Q118: =ROUNDDOWN(P118,0) -> 0
A119: 118 | C119: Jan Verstraaten | D119: B | E119: =VLOOKUP(F119,'Groep A'!X$2:Y76,2) -> 0.417 | F119: 12 | G119: =F119/30 -> 0.4 | J119: =H119/F119*100 -> 0 | M119: =K119/F119*100 -> 0 | N119: =H119+K119 -> 0 | O119: =N119/60 -> 0 | P119: =O119/G119*100 -> 0 | Q119: =ROUNDDOWN(P119,0) -> 0
A120: 119 | C120: Jan Weerts | D120: B | E120: =VLOOKUP(F120,'Groep A'!X$2:Y90,2) -> 0.275 | F120: 8 | G120: =F120/30 -> 0.2666666667 | J120: =H120/F120*100 -> 0 | M120: =K120/F120*100 -> 0 | N120: =H120+K120 -> 0 | O120: =N120/60 -> 0 | P120: =O120/G120*100 -> 0 | Q120: =ROUNDDOWN(P120,0) -> 0
A121: 120 | C121: Jans Bos | D121: B | E121: =VLOOKUP(F121,'Groep A'!X$2:Y110,2) -> 0.384 | F121: 11 | G121: =F121/30 -> 0.3666666667 | J121: =H121/F121*100 -> 0 | M121: =K121/F121*100 -> 0 | N121: =H121+K121 -> 0 | O121: =N121/60 -> 0 | P121: =O121/G121*100 -> 0 | Q121: =ROUNDDOWN(P121,0) -> 0
A122: 121 | C122: Jans Kinds | D122: B | E122: =VLOOKUP(F122,'Groep A'!X$2:Y183,2) -> 0.275 | F122: 8 | G122: =F122/30 -> 0.2666666667 | J122: =H122/F122*100 -> 0 | M122: =K122/F122*100 -> 0 | N122: =H122+K122 -> 0 | O122: =N122/60 -> 0 | P122: =O122/G122*100 -> 0 | Q122: =ROUNDDOWN(P122,0) -> 0
A123: 122 | C123: Jarno Nap | D123: B | E123: =VLOOKUP(F123,'Groep A'!X$2:Y78,2) -> 0.275 | F123: 8 | G123: =F123/30 -> 0.2666666667 | J123: =H123/F123*100 -> 0 | M123: =K123/F123*100 -> 0 | N123: =H123+K123 -> 0 | O123: =N123/60 -> 0 | P123: =O123/G123*100 -> 0 | Q123: =ROUNDDOWN(P123,0) -> 0
A124: 123 | C124: Jeroen Edens | D124: B | E124: =VLOOKUP(F124,'Groep A'!X$2:Y92,2) -> 0.45 | F124: 13 | G124: =F124/30 -> 0.4333333333 | J124: =H124/F124*100 -> 0 | M124: =K124/F124*100 -> 0 | N124: =H124+K124 -> 0 | O124: =N124/60 -> 0 | P124: =O124/G124*100 -> 0 | Q124: =ROUNDDOWN(P124,0) -> 0
A125: 124 | C125: Jetse Ploeg | D125: B | E125: =VLOOKUP(F125,'Groep A'!X$2:Y94,2) -> 0.45 | F125: 13 | G125: =F125/30 -> 0.4333333333 | J125: =H125/F125*100 -> 0 | M125: =K125/F125*100 -> 0 | N125: =H125+K125 -> 0 | O125: =N125/60 -> 0 | P125: =O125/G125*100 -> 0 | Q125: =ROUNDDOWN(P125,0) -> 0
A126: 125 | C126: Joep Imminga | D126: B | E126: =VLOOKUP(F126,'Groep A'!X$2:Y132,2) -> 0.317 | F126: 9 | G126: =F126/30 -> 0.3 | J126: =H126/F126*100 -> 0 | M126: =K126/F126*100 -> 0 | N126: =H126+K126 -> 0 | O126: =N126/60 -> 0 | P126: =O126/G126*100 -> 0 | Q126: =ROUNDDOWN(P126,0) -> 0
A127: 126 | C127: Joey Tuik | D127: B | E127: =VLOOKUP(F127,'Groep A'!X$2:Y54,2) -> 0.275 | F127: 8 | G127: =F127/30 -> 0.2666666667 | J127: =H127/F127*100 -> 0 | M127: =K127/F127*100 -> 0 | N127: =H127+K127 -> 0 | O127: =N127/60 -> 0 | P127: =O127/G127*100 -> 0 | Q127: =ROUNDDOWN(P127,0) -> 0
A128: 127 | C128: Johan Ackermann | D128: B | E128: =VLOOKUP(F128,'Groep A'!X$2:Y184,2) -> 0.384 | F128: 11 | G128: =F128/30 -> 0.3666666667 | J128: =H128/F128*100 -> 0 | M128: =K128/F128*100 -> 0 | N128: =H128+K128 -> 0 | O128: =N128/60 -> 0 | P128: =O128/G128*100 -> 0 | Q128: =ROUNDDOWN(P128,0) -> 0
A129: 128 | C129: Johan de Groot | D129: B | E129: =VLOOKUP(F129,'Groep A'!X$2:Y185,2) -> 0.317 | F129: 9 | G129: =F129/30 -> 0.3 | J129: =H129/F129*100 -> 0 | M129: =K129/F129*100 -> 0 | N129: =H129+K129 -> 0 | O129: =N129/60 -> 0 | P129: =O129/G129*100 -> 0 | Q129: =ROUNDDOWN(P129,0) -> 0
A130: 129 | C130: Johan Edens | D130: B | E130: =VLOOKUP(F130,'Groep A'!X$2:Y136,2) -> 0.484 | F130: 14 | G130: =F130/30 -> 0.4666666667 | J130: =H130/F130*100 -> 0 | M130: =K130/F130*100 -> 0 | N130: =H130+K130 -> 0 | O130: =N130/60 -> 0 | P130: =O130/G130*100 -> 0 | Q130: =ROUNDDOWN(P130,0) -> 0
A131: 130 | C131: Johan Tuntelder | D131: B | E131: =VLOOKUP(F131,'Groep A'!X$2:Y122,2) -> 0.35 | F131: 10 | G131: =F131/30 -> 0.3333333333 | J131: =H131/F131*100 -> 0 | M131: =K131/F131*100 -> 0 | N131: =H131+K131 -> 0 | O131: =N131/60 -> 0 | P131: =O131/G131*100 -> 0 | Q131: =ROUNDDOWN(P131,0) -> 0
A132: 131 | C132: John de Jonge | D132: B | E132: =VLOOKUP(F132,'Groep A'!X$2:Y96,2) -> 0.275 | F132: 8 | G132: =F132/30 -> 0.2666666667 | J132: =H132/F132*100 -> 0 | M132: =K132/F132*100 -> 0 | N132: =H132+K132 -> 0 | O132: =N132/60 -> 0 | P132: =O132/G132*100 -> 0 | Q132: =ROUNDDOWN(P132,0) -> 0
A133: 132 | C133: Johnny Siaila | D133: B | E133: =VLOOKUP(F133,'Groep A'!X$2:Y134,2) -> 0.275 | F133: 8 | G133: =F133/30 -> 0.2666666667 | J133: =H133/F133*100 -> 0 | M133: =K133/F133*100 -> 0 | N133: =H133+K133 -> 0 | O133: =N133/60 -> 0 | P133: =O133/G133*100 -> 0 | Q133: =ROUNDDOWN(P133,0) -> 0
A134: 133 | C134: Joop Beugels | D134: B | E134: =VLOOKUP(F134,'Groep A'!X$2:Y114,2) -> 0.275 | F134: 8 | G134: =F134/30 -> 0.2666666667 | J134: =H134/F134*100 -> 0 | M134: =K134/F134*100 -> 0 | N134: =H134+K134 -> 0 | O134: =N134/60 -> 0 | P134: =O134/G134*100 -> 0 | Q134: =ROUNDDOWN(P134,0) -> 0
A135: 134 | C135: Joop Boersma | D135: B | E135: =VLOOKUP(F135,'Groep A'!X$2:Y70,2) -> 0.317 | F135: 9 | G135: =F135/30 -> 0.3 | J135: =H135/F135*100 -> 0 | M135: =K135/F135*100 -> 0 | N135: =H135+K135 -> 0 | O135: =N135/60 -> 0 | P135: =O135/G135*100 -> 0 | Q135: =ROUNDDOWN(P135,0) -> 0
A136: 135 | C136: Joyce Klunder | D136: B | E136: =VLOOKUP(F136,'Groep A'!X$2:Y33,2) -> 0.317 | F136: 9 | G136: =F136/30 -> 0.3 | J136: =H136/F136*100 -> 0 | M136: =K136/F136*100 -> 0 | N136: =H136+K136 -> 0 | O136: =N136/60 -> 0 | P136: =O136/G136*100 -> 0 | Q136: =ROUNDDOWN(P136,0) -> 0
A137: 136 | C137: Kars Kuiper | D137: B | E137: =VLOOKUP(F137,'Groep A'!X$2:Y154,2) -> 0.275 | F137: 8 | G137: =F137/30 -> 0.2666666667 | J137: =H137/F137*100 -> 0 | M137: =K137/F137*100 -> 0 | N137: =H137+K137 -> 0 | O137: =N137/60 -> 0 | P137: =O137/G137*100 -> 0 | Q137: =ROUNDDOWN(P137,0) -> 0
A138: 137 | C138: Kasper Schurer | D138: B | E138: =VLOOKUP(F138,'Groep A'!X$2:Y84,2) -> 0.317 | F138: 9 | G138: =F138/30 -> 0.3 | J138: =H138/F138*100 -> 0 | M138: =K138/F138*100 -> 0 | N138: =H138+K138 -> 0 | O138: =N138/60 -> 0 | P138: =O138/G138*100 -> 0 | Q138: =ROUNDDOWN(P138,0) -> 0
A139: 138 | C139: Klaas Boersma | D139: B | E139: =VLOOKUP(F139,'Groep A'!X$2:Y137,2) -> 0.275 | F139: 8 | G139: =F139/30 -> 0.2666666667 | J139: =H139/F139*100 -> 0 | M139: =K139/F139*100 -> 0 | N139: =H139+K139 -> 0 | O139: =N139/60 -> 0 | P139: =O139/G139*100 -> 0 | Q139: =ROUNDDOWN(P139,0) -> 0
A140: 139 | C140: Klaas Boven | D140: B | E140: =VLOOKUP(F140,'Groep A'!X$2:Y186,2) -> 0.275 | F140: 8 | G140: =F140/30 -> 0.2666666667 | J140: =H140/F140*100 -> 0 | M140: =K140/F140*100 -> 0 | N140: =H140+K140 -> 0 | O140: =N140/60 -> 0 | P140: =O140/G140*100 -> 0 | Q140: =ROUNDDOWN(P140,0) -> 0
A141: 140 | C141: Koos Imminga | D141: B | E141: =VLOOKUP(F141,'Groep A'!X$2:Y112,2) -> 0.35 | F141: 10 | G141: =F141/30 -> 0.3333333333 | J141: =H141/F141*100 -> 0 | M141: =K141/F141*100 -> 0 | N141: =H141+K141 -> 0 | O141: =N141/60 -> 0 | P141: =O141/G141*100 -> 0 | Q141: =ROUNDDOWN(P141,0) -> 0
A142: 141 | C142: Koos Jonker | D142: B | E142: =VLOOKUP(F142,'Groep A'!X$2:Y134,2) -> 0.35 | F142: 10 | G142: =F142/30 -> 0.3333333333 | J142: =H142/F142*100 -> 0 | M142: =K142/F142*100 -> 0 | N142: =H142+K142 -> 0 | O142: =N142/60 -> 0 | P142: =O142/G142*100 -> 0 | Q142: =ROUNDDOWN(P142,0) -> 0
A143: 142 | C143: Liesko Westerhuis | D143: B | E143: =VLOOKUP(F143,'Groep A'!X$2:Y75,2) -> 0.275 | F143: 8 | G143: =F143/30 -> 0.2666666667 | J143: =H143/F143*100 -> 0 | M143: =K143/F143*100 -> 0 | N143: =H143+K143 -> 0 | O143: =N143/60 -> 0 | P143: =O143/G143*100 -> 0 | Q143: =ROUNDDOWN(P143,0) -> 0
A144: 143 | C144: Louke Ploeg | D144: B | E144: =VLOOKUP(F144,'Groep A'!X$2:Y110,2) -> 0.275 | F144: 8 | G144: =F144/30 -> 0.2666666667 | J144: =H144/F144*100 -> 0 | M144: =K144/F144*100 -> 0 | N144: =H144+K144 -> 0 | O144: =N144/60 -> 0 | P144: =O144/G144*100 -> 0 | Q144: =ROUNDDOWN(P144,0) -> 0
A145: 144 | C145: Loutje Blik | D145: B | E145: =VLOOKUP(F145,'Groep A'!X$2:Y45,2) -> 0.275 | F145: 8 | G145: =F145/30 -> 0.2666666667 | J145: =H145/F145*100 -> 0 | M145: =K145/F145*100 -> 0 | N145: =H145+K145 -> 0 | O145: =N145/60 -> 0 | P145: =O145/G145*100 -> 0 | Q145: =ROUNDDOWN(P145,0) -> 0
A146: 145 | C146: Luit Korthuis | D146: B | E146: =VLOOKUP(F146,'Groep A'!X$2:Y127,2) -> 0.275 | F146: 8 | G146: =F146/30 -> 0.2666666667 | J146: =H146/F146*100 -> 0 | M146: =K146/F146*100 -> 0 | N146: =H146+K146 -> 0 | O146: =N146/60 -> 0 | P146: =O146/G146*100 -> 0 | Q146: =ROUNDDOWN(P146,0) -> 0
A147: 146 | C147: Luppo Imminga | D147: B | E147: =VLOOKUP(F147,'Groep A'!X$2:Y155,2) -> 0.35 | F147: 10 | G147: =F147/30 -> 0.3333333333 | J147: =H147/F147*100 -> 0 | M147: =K147/F147*100 -> 0 | N147: =H147+K147 -> 0 | O147: =N147/60 -> 0 | P147: =O147/G147*100 -> 0 | Q147: =ROUNDDOWN(P147,0) -> 0
A148: 147 | C148: Luuk Houwen | D148: B | E148: =VLOOKUP(F148,'Groep A'!X$2:Y112,2) -> 0.275 | F148: 8 | G148: =F148/30 -> 0.2666666667 | J148: =H148/F148*100 -> 0 | M148: =K148/F148*100 -> 0 | N148: =H148+K148 -> 0 | O148: =N148/60 -> 0 | P148: =O148/G148*100 -> 0 | Q148: =ROUNDDOWN(P148,0) -> 0
A149: 148 | C149: Marcel Leeraar | D149: B | E149: =VLOOKUP(F149,'Groep A'!X$2:Y188,2) -> 0.275 | F149: 8 | G149: =F149/30 -> 0.2666666667 | J149: =H149/F149*100 -> 0 | M149: =K149/F149*100 -> 0 | N149: =H149+K149 -> 0 | O149: =N149/60 -> 0 | P149: =O149/G149*100 -> 0 | Q149: =ROUNDDOWN(P149,0) -> 0
A150: 149 | C150: Marinus Tapilatu | D150: B | E150: =VLOOKUP(F150,'Groep A'!X$2:Y82,2) -> 0.317 | F150: 9 | G150: =F150/30 -> 0.3 | J150: =H150/F150*100 -> 0 | M150: =K150/F150*100 -> 0 | N150: =H150+K150 -> 0 | O150: =N150/60 -> 0 | P150: =O150/G150*100 -> 0 | Q150: =ROUNDDOWN(P150,0) -> 0
A151: 150 | C151: Mario van der Laan | D151: B | E151: =VLOOKUP(F151,'Groep A'!X$2:Y156,2) -> 0.384 | F151: 11 | G151: =F151/30 -> 0.3666666667 | J151: =H151/F151*100 -> 0 | M151: =K151/F151*100 -> 0 | N151: =H151+K151 -> 0 | O151: =N151/60 -> 0 | P151: =O151/G151*100 -> 0 | Q151: =ROUNDDOWN(P151,0) -> 0
A152: 151 | C152: Mark Roll | D152: B | E152: =VLOOKUP(F152,'Groep A'!X$2:Y100,2) -> 0.275 | F152: 8 | G152: =F152/30 -> 0.2666666667 | J152: =H152/F152*100 -> 0 | M152: =K152/F152*100 -> 0 | N152: =H152+K152 -> 0 | O152: =N152/60 -> 0 | P152: =O152/G152*100 -> 0 | Q152: =ROUNDDOWN(P152,0) -> 0
A153: 152 | C153: Marten Bosma | D153: B | E153: =VLOOKUP(F153,'Groep A'!X$2:Y81,2) -> 0.35 | F153: 10 | G153: =F153/30 -> 0.3333333333 | J153: =H153/F153*100 -> 0 | M153: =K153/F153*100 -> 0 | N153: =H153+K153 -> 0 | O153: =N153/60 -> 0 | P153: =O153/G153*100 -> 0 | Q153: =ROUNDDOWN(P153,0) -> 0
A154: 153 | C154: Martin Hateboer | D154: B | E154: =VLOOKUP(F154,'Groep A'!X$2:Y157,2) -> 0.35 | F154: 10 | G154: =F154/30 -> 0.3333333333 | J154: =H154/F154*100 -> 0 | M154: =K154/F154*100 -> 0 | N154: =H154+K154 -> 0 | O154: =N154/60 -> 0 | P154: =O154/G154*100 -> 0 | Q154: =ROUNDDOWN(P154,0) -> 0
A155: 154 | C155: Martin Nieuwenhuis | D155: B | E155: =VLOOKUP(F155,'Groep A'!X$2:Y82,2) -> 0.35 | F155: 10 | G155: =F155/30 -> 0.3333333333 | J155: =H155/F155*100 -> 0 | M155: =K155/F155*100 -> 0 | N155: =H155+K155 -> 0 | O155: =N155/60 -> 0 | P155: =O155/G155*100 -> 0 | Q155: =ROUNDDOWN(P155,0) -> 0
A156: 155 | C156: Mathias Krekel | D156: B | E156: =VLOOKUP(F156,'Groep A'!X$2:Y189,2) -> 0.275 | F156: 8 | G156: =F156/30 -> 0.2666666667 | J156: =H156/F156*100 -> 0 | M156: =K156/F156*100 -> 0 | N156: =H156+K156 -> 0 | O156: =N156/60 -> 0 | P156: =O156/G156*100 -> 0 | Q156: =ROUNDDOWN(P156,0) -> 0
A157: 156 | C157: Menno Edens | D157: B | E157: =VLOOKUP(F157,'Groep A'!X$2:Y42,2) -> 0.317 | F157: 9 | G157: =F157/30 -> 0.3 | J157: =H157/F157*100 -> 0 | M157: =K157/F157*100 -> 0 | N157: =H157+K157 -> 0 | O157: =N157/60 -> 0 | P157: =O157/G157*100 -> 0 | Q157: =ROUNDDOWN(P157,0) -> 0
A158: 157 | C158: Moni de Roo | D158: B | E158: =VLOOKUP(F158,'Groep A'!X$2:Y107,2) -> 0.275 | F158: 8 | G158: =F158/30 -> 0.2666666667 | J158: =H158/F158*100 -> 0 | M158: =K158/F158*100 -> 0 | N158: =H158+K158 -> 0 | O158: =N158/60 -> 0 | P158: =O158/G158*100 -> 0 | Q158: =ROUNDDOWN(P158,0) -> 0
A159: 158 | C159: Nico Jansen | D159: B | E159: =VLOOKUP(F159,'Groep A'!X$2:Y86,2) -> 0.275 | F159: 8 | G159: =F159/30 -> 0.2666666667 | J159: =H159/F159*100 -> 0 | M159: =K159/F159*100 -> 0 | N159: =H159+K159 -> 0 | O159: =N159/60 -> 0 | P159: =O159/G159*100 -> 0 | Q159: =ROUNDDOWN(P159,0) -> 0
A160: 159 | C160: Nico Palar | D160: B | E160: =VLOOKUP(F160,'Groep A'!X$2:Y190,2) -> 0.275 | F160: 8 | G160: =F160/30 -> 0.2666666667 | J160: =H160/F160*100 -> 0 | M160: =K160/F160*100 -> 0 | N160: =H160+K160 -> 0 | O160: =N160/60 -> 0 | P160: =O160/G160*100 -> 0 | Q160: =ROUNDDOWN(P160,0) -> 0
A161: 160 | C161: Nico van Krimpen | D161: B | E161: =VLOOKUP(F161,'Groep A'!X$2:Y158,2) -> 0.417 | F161: 12 | G161: =F161/30 -> 0.4 | J161: =H161/F161*100 -> 0 | M161: =K161/F161*100 -> 0 | N161: =H161+K161 -> 0 | O161: =N161/60 -> 0 | P161: =O161/G161*100 -> 0 | Q161: =ROUNDDOWN(P161,0) -> 0
A162: 161 | C162: Okke Kluiter | D162: B | E162: =VLOOKUP(F162,'Groep A'!X$2:Y144,2) -> 0.275 | F162: 8 | G162: =F162/30 -> 0.2666666667 | J162: =H162/F162*100 -> 0 | M162: =K162/F162*100 -> 0 | N162: =H162+K162 -> 0 | O162: =N162/60 -> 0 | P162: =O162/G162*100 -> 0 | Q162: =ROUNDDOWN(P162,0) -> 0
A163: 162 | C163: Patrick Smid | D163: B | E163: =VLOOKUP(F163,'Groep A'!X$2:Y191,2) -> 0.275 | F163: 8 | G163: =F163/30 -> 0.2666666667 | J163: =H163/F163*100 -> 0 | M163: =K163/F163*100 -> 0 | N163: =H163+K163 -> 0 | O163: =N163/60 -> 0 | P163: =O163/G163*100 -> 0 | Q163: =ROUNDDOWN(P163,0) -> 0
A164: 163 | C164: Paul Lutz | D164: B | E164: =VLOOKUP(F164,'Groep A'!X$2:Y114,2) -> 0.417 | F164: 12 | G164: =F164/30 -> 0.4 | J164: =H164/F164*100 -> 0 | M164: =K164/F164*100 -> 0 | N164: =H164+K164 -> 0 | O164: =N164/60 -> 0 | P164: =O164/G164*100 -> 0 | Q164: =ROUNDDOWN(P164,0) -> 0
A165: 164 | C165: Paulien Gerritsen | D165: B | E165: =VLOOKUP(F165,'Groep A'!X$2:Y159,2) -> 0.317 | F165: 9 | G165: =F165/30 -> 0.3 | J165: =H165/F165*100 -> 0 | M165: =K165/F165*100 -> 0 | N165: =H165+K165 -> 0 | O165: =N165/60 -> 0 | P165: =O165/G165*100 -> 0 | Q165: =ROUNDDOWN(P165,0) -> 0
A166: 165 | C166: Peter Brul | D166: B | E166: =VLOOKUP(F166,'Groep A'!X$2:Y130,2) -> 0.275 | F166: 8 | G166: =F166/30 -> 0.2666666667 | J166: =H166/F166*100 -> 0 | M166: =K166/F166*100 -> 0 | N166: =H166+K166 -> 0 | O166: =N166/60 -> 0 | P166: =O166/G166*100 -> 0 | Q166: =ROUNDDOWN(P166,0) -> 0
A167: 166 | C167: Peter Keizer | D167: B | E167: =VLOOKUP(F167,'Groep A'!X$2:Y138,2) -> 0.384 | F167: 11 | G167: =F167/30 -> 0.3666666667 | J167: =H167/F167*100 -> 0 | M167: =K167/F167*100 -> 0 | N167: =H167+K167 -> 0 | O167: =N167/60 -> 0 | P167: =O167/G167*100 -> 0 | Q167: =ROUNDDOWN(P167,0) -> 0
A168: 167 | C168: Peter Molema | D168: B | E168: =VLOOKUP(F168,'Groep A'!X$2:Y160,2) -> 0.35 | F168: 10 | G168: =F168/30 -> 0.3333333333 | J168: =H168/F168*100 -> 0 | M168: =K168/F168*100 -> 0 | N168: =H168+K168 -> 0 | O168: =N168/60 -> 0 | P168: =O168/G168*100 -> 0 | Q168: =ROUNDDOWN(P168,0) -> 0
A169: 168 | C169: Piet Bouwman | D169: B | E169: =VLOOKUP(F169,'Groep A'!X$2:Y117,2) -> 0.275 | F169: 8 | G169: =F169/30 -> 0.2666666667 | J169: =H169/F169*100 -> 0 | M169: =K169/F169*100 -> 0 | N169: =H169+K169 -> 0 | O169: =N169/60 -> 0 | P169: =O169/G169*100 -> 0 | Q169: =ROUNDDOWN(P169,0) -> 0
A170: 169 | C170: Piet Jager | D170: B | E170: =VLOOKUP(F170,'Groep A'!X$2:Y96,2) -> 0.35 | F170: 10 | G170: =F170/30 -> 0.3333333333 | J170: =H170/F170*100 -> 0 | M170: =K170/F170*100 -> 0 | N170: =H170+K170 -> 0 | O170: =N170/60 -> 0 | P170: =O170/G170*100 -> 0 | Q170: =ROUNDDOWN(P170,0) -> 0
A171: 170 | C171: Piet Oosterhuis | D171: B | E171: =VLOOKUP(F171,'Groep A'!X$2:Y192,2) -> 0.417 | F171: 12 | G171: =F171/30 -> 0.4 | J171: =H171/F171*100 -> 0 | M171: =K171/F171*100 -> 0 | N171: =H171+K171 -> 0 | O171: =N171/60 -> 0 | P171: =O171/G171*100 -> 0 | Q171: =ROUNDDOWN(P171,0) -> 0
A172: 171 | C172: Piet Spa | D172: B | E172: =VLOOKUP(F172,'Groep A'!X$2:Y95,2) -> 0.275 | F172: 8 | G172: =F172/30 -> 0.2666666667 | J172: =H172/F172*100 -> 0 | M172: =K172/F172*100 -> 0 | N172: =H172+K172 -> 0 | O172: =N172/60 -> 0 | P172: =O172/G172*100 -> 0 | Q172: =ROUNDDOWN(P172,0) -> 0
A173: 172 | C173: Piet Wollerich | D173: B | E173: =VLOOKUP(F173,'Groep A'!X$2:Y52,2) -> 0.317 | F173: 9 | G173: =F173/30 -> 0.3 | J173: =H173/F173*100 -> 0 | M173: =K173/F173*100 -> 0 | N173: =H173+K173 -> 0 | O173: =N173/60 -> 0 | P173: =O173/G173*100 -> 0 | Q173: =ROUNDDOWN(P173,0) -> 0
A174: 173 | C174: Piet Wüst | D174: B | E174: =VLOOKUP(F174,'Groep A'!X$2:Y193,2) -> 0.484 | F174: 14 | G174: =F174/30 -> 0.4666666667 | J174: =H174/F174*100 -> 0 | M174: =K174/F174*100 -> 0 | N174: =H174+K174 -> 0 | O174: =N174/60 -> 0 | P174: =O174/G174*100 -> 0 | Q174: =ROUNDDOWN(P174,0) -> 0
A175: 174 | C175: Pieter van der Poel | D175: B | E175: =VLOOKUP(F175,'Groep A'!X$2:Y139,2) -> 0.317 | F175: 9 | G175: =F175/30 -> 0.3 | J175: =H175/F175*100 -> 0 | M175: =K175/F175*100 -> 0 | N175: =H175+K175 -> 0 | O175: =N175/60 -> 0 | P175: =O175/G175*100 -> 0 | Q175: =ROUNDDOWN(P175,0) -> 0
A176: 175 | C176: Reint Boltendal | D176: B | E176: =VLOOKUP(F176,'Groep A'!X$2:Y116,2) -> 0.35 | F176: 10 | G176: =F176/30 -> 0.3333333333 | J176: =H176/F176*100 -> 0 | M176: =K176/F176*100 -> 0 | N176: =H176+K176 -> 0 | O176: =N176/60 -> 0 | P176: =O176/G176*100 -> 0 | Q176: =ROUNDDOWN(P176,0) -> 0
A177: 176 | C177: Reint Loer | D177: B | E177: =VLOOKUP(F177,'Groep A'!X$2:Y88,2) -> 0.275 | F177: 8 | G177: =F177/30 -> 0.2666666667 | J177: =H177/F177*100 -> 0 | M177: =K177/F177*100 -> 0 | N177: =H177+K177 -> 0 | O177: =N177/60 -> 0 | P177: =O177/G177*100 -> 0 | Q177: =ROUNDDOWN(P177,0) -> 0
A178: 177 | C178: Reint Zuur | D178: B | E178: =VLOOKUP(F178,'Groep A'!X$2:Y99,2) -> 0.275 | F178: 8 | G178: =F178/30 -> 0.2666666667 | J178: =H178/F178*100 -> 0 | M178: =K178/F178*100 -> 0 | N178: =H178+K178 -> 0 | O178: =N178/60 -> 0 | P178: =O178/G178*100 -> 0 | Q178: =ROUNDDOWN(P178,0) -> 0
A179: 178 | C179: Rene Imminga | D179: B | E179: =VLOOKUP(F179,'Groep A'!X$2:Y108,2) -> 0.317 | F179: 9 | G179: =F179/30 -> 0.3 | J179: =H179/F179*100 -> 0 | M179: =K179/F179*100 -> 0 | N179: =H179+K179 -> 0 | O179: =N179/60 -> 0 | P179: =O179/G179*100 -> 0 | Q179: =ROUNDDOWN(P179,0) -> 0
A180: 179 | C180: Rene Munneke | D180: B | E180: =VLOOKUP(F180,'Groep A'!X$2:Y86,2) -> 0.275 | F180: 8 | G180: =F180/30 -> 0.2666666667 | J180: =H180/F180*100 -> 0 | M180: =K180/F180*100 -> 0 | N180: =H180+K180 -> 0 | O180: =N180/60 -> 0 | P180: =O180/G180*100 -> 0 | Q180: =ROUNDDOWN(P180,0) -> 0
A181: 180 | C181: Rene Westerhof | D181: B | E181: =VLOOKUP(F181,'Groep A'!X$2:Y102,2) -> 0.275 | F181: 8 | G181: =F181/30 -> 0.2666666667 | J181: =H181/F181*100 -> 0 | M181: =K181/F181*100 -> 0 | N181: =H181+K181 -> 0 | O181: =N181/60 -> 0 | P181: =O181/G181*100 -> 0 | Q181: =ROUNDDOWN(P181,0) -> 0
A182: 181 | C182: Ricardo Feeburg | D182: B | E182: =VLOOKUP(F182,'Groep A'!X$2:Y194,2) -> 0.417 | F182: 12 | G182: =F182/30 -> 0.4 | J182: =H182/F182*100 -> 0 | M182: =K182/F182*100 -> 0 | N182: =H182+K182 -> 0 | O182: =N182/60 -> 0 | P182: =O182/G182*100 -> 0 | Q182: =ROUNDDOWN(P182,0) -> 0
A183: 182 | C183: Richard Kant | D183: B | E183: =VLOOKUP(F183,'Groep A'!X$2:Y140,2) -> 0.517 | F183: 15 | G183: =F183/30 -> 0.5 | J183: =H183/F183*100 -> 0 | M183: =K183/F183*100 -> 0 | N183: =H183+K183 -> 0 | O183: =N183/60 -> 0 | P183: =O183/G183*100 -> 0 | Q183: =ROUNDDOWN(P183,0) -> 0
A184: 183 | C184: Rick Kuipers | D184: B | E184: =VLOOKUP(F184,'Groep A'!X$2:Y195,2) -> 0.35 | F184: 10 | G184: =F184/30 -> 0.3333333333 | J184: =H184/F184*100 -> 0 | M184: =K184/F184*100 -> 0 | N184: =H184+K184 -> 0 | O184: =N184/60 -> 0 | P184: =O184/G184*100 -> 0 | Q184: =ROUNDDOWN(P184,0) -> 0
A185: 184 | C185: Rick Tuin | D185: B | E185: =VLOOKUP(F185,'Groep A'!X$2:Y160,2) -> 0.384 | F185: 11 | G185: =F185/30 -> 0.3666666667 | J185: =H185/F185*100 -> 0 | M185: =K185/F185*100 -> 0 | N185: =H185+K185 -> 0 | O185: =N185/60 -> 0 | P185: =O185/G185*100 -> 0 | Q185: =ROUNDDOWN(P185,0) -> 0
A186: 185 | C186: Rick van der Poel | D186: B | E186: =VLOOKUP(F186,'Groep A'!X$2:Y29,2) -> 0.317 | F186: 9 | G186: =F186/30 -> 0.3 | J186: =H186/F186*100 -> 0 | M186: =K186/F186*100 -> 0 | N186: =H186+K186 -> 0 | O186: =N186/60 -> 0 | P186: =O186/G186*100 -> 0 | Q186: =ROUNDDOWN(P186,0) -> 0
A187: 186 | C187: Riekus Brader | D187: B | E187: =VLOOKUP(F187,'Groep A'!X$2:Y196,2) -> 0.275 | F187: 8 | G187: =F187/30 -> 0.2666666667 | J187: =H187/F187*100 -> 0 | M187: =K187/F187*100 -> 0 | N187: =H187+K187 -> 0 | O187: =N187/60 -> 0 | P187: =O187/G187*100 -> 0 | Q187: =ROUNDDOWN(P187,0) -> 0
A188: 187 | C188: Rinus Oostdijk | D188: B | E188: =VLOOKUP(F188,'Groep A'!X$2:Y106,2) -> 0.275 | F188: 8 | G188: =F188/30 -> 0.2666666667 | J188: =H188/F188*100 -> 0 | M188: =K188/F188*100 -> 0 | N188: =H188+K188 -> 0 | O188: =N188/60 -> 0 | P188: =O188/G188*100 -> 0 | Q188: =ROUNDDOWN(P188,0) -> 0
A189: 188 | C189: Rob Raven | D189: B | E189: =VLOOKUP(F189,'Groep A'!X$2:Y141,2) -> 0.317 | F189: 9 | G189: =F189/30 -> 0.3 | J189: =H189/F189*100 -> 0 | M189: =K189/F189*100 -> 0 | N189: =H189+K189 -> 0 | O189: =N189/60 -> 0 | P189: =O189/G189*100 -> 0 | Q189: =ROUNDDOWN(P189,0) -> 0
A190: 189 | C190: Rob Schuurmans | D190: B | E190: =VLOOKUP(F190,'Groep A'!X$2:Y161,2) -> 0.35 | F190: 10 | G190: =F190/30 -> 0.3333333333 | J190: =H190/F190*100 -> 0 | M190: =K190/F190*100 -> 0 | N190: =H190+K190 -> 0 | O190: =N190/60 -> 0 | P190: =O190/G190*100 -> 0 | Q190: =ROUNDDOWN(P190,0) -> 0
A191: 190 | C191: Robert Blouw | D191: B | E191: =VLOOKUP(F191,'Groep A'!X$2:Y142,2) -> 0.275 | F191: 8 | G191: =F191/30 -> 0.2666666667 | J191: =H191/F191*100 -> 0 | M191: =K191/F191*100 -> 0 | N191: =H191+K191 -> 0 | O191: =N191/60 -> 0 | P191: =O191/G191*100 -> 0 | Q191: =ROUNDDOWN(P191,0) -> 0
A192: 191 | C192: Robert Boer | D192: B | E192: =VLOOKUP(F192,'Groep A'!X$2:Y104,2) -> 0.275 | F192: 8 | G192: =F192/30 -> 0.2666666667 | J192: =H192/F192*100 -> 0 | M192: =K192/F192*100 -> 0 | N192: =H192+K192 -> 0 | O192: =N192/60 -> 0 | P192: =O192/G192*100 -> 0 | Q192: =ROUNDDOWN(P192,0) -> 0
A193: 192 | C193: Roelie Dorenbos | D193: B | E193: =VLOOKUP(F193,'Groep A'!X$2:Y143,2) -> 0.317 | F193: 9 | G193: =F193/30 -> 0.3 | J193: =H193/F193*100 -> 0 | M193: =K193/F193*100 -> 0 | N193: =H193+K193 -> 0 | O193: =N193/60 -> 0 | P193: =O193/G193*100 -> 0 | Q193: =ROUNDDOWN(P193,0) -> 0
A194: 193 | C194: Ron Eissen | D194: B | E194: =VLOOKUP(F194,'Groep A'!X$2:Y104,2) -> 0.35 | F194: 10 | G194: =F194/30 -> 0.3333333333 | J194: =H194/F194*100 -> 0 | M194: =K194/F194*100 -> 0 | N194: =H194+K194 -> 0 | O194: =N194/60 -> 0 | P194: =O194/G194*100 -> 0 | Q194: =ROUNDDOWN(P194,0) -> 0
A195: 194 | C195: Ronnie Berg | D195: B | E195: =VLOOKUP(F195,'Groep A'!X$2:Y144,2) -> 0.384 | F195: 11 | G195: =F195/30 -> 0.3666666667 | J195: =H195/F195*100 -> 0 | M195: =K195/F195*100 -> 0 | N195: =H195+K195 -> 0 | O195: =N195/60 -> 0 | P195: =O195/G195*100 -> 0 | Q195: =ROUNDDOWN(P195,0) -> 0
A196: 195 | C196: Ronnie Kruit | D196: B | E196: =VLOOKUP(F196,'Groep A'!X$2:Y88,2) -> 0.275 | F196: 8 | G196: =F196/30 -> 0.2666666667 | J196: =H196/F196*100 -> 0 | M196: =K196/F196*100 -> 0 | N196: =H196+K196 -> 0 | O196: =N196/60 -> 0 | P196: =O196/G196*100 -> 0 | Q196: =ROUNDDOWN(P196,0) -> 0
A197: 196 | C197: Roy Kerbof | D197: B | E197: =VLOOKUP(F197,'Groep A'!X$2:Y128,2) -> 0.417 | F197: 12 | G197: =F197/30 -> 0.4 | J197: =H197/F197*100 -> 0 | M197: =K197/F197*100 -> 0 | N197: =H197+K197 -> 0 | O197: =N197/60 -> 0 | P197: =O197/G197*100 -> 0 | Q197: =ROUNDDOWN(P197,0) -> 0
A198: 197 | C198: Roy Ziesling | D198: B | E198: =VLOOKUP(F198,'Groep A'!X$2:Y87,2) -> 0.317 | F198: 9 | G198: =F198/30 -> 0.3 | J198: =H198/F198*100 -> 0 | M198: =K198/F198*100 -> 0 | N198: =H198+K198 -> 0 | O198: =N198/60 -> 0 | P198: =O198/G198*100 -> 0 | Q198: =ROUNDDOWN(P198,0) -> 0
A199: 198 | C199: Sander Loer | D199: B | E199: =VLOOKUP(F199,'Groep A'!X$2:Y145,2) -> 0.275 | F199: 8 | G199: =F199/30 -> 0.2666666667 | J199: =H199/F199*100 -> 0 | M199: =K199/F199*100 -> 0 | N199: =H199+K199 -> 0 | O199: =N199/60 -> 0 | P199: =O199/G199*100 -> 0 | Q199: =ROUNDDOWN(P199,0) -> 0
A200: 199 | C200: Siep Mellema | D200: B | E200: =VLOOKUP(F200,'Groep A'!X$2:Y71,2) -> 0.35 | F200: 10 | G200: =F200/30 -> 0.3333333333 | J200: =H200/F200*100 -> 0 | M200: =K200/F200*100 -> 0 | N200: =H200+K200 -> 0 | O200: =N200/60 -> 0 | P200: =O200/G200*100 -> 0 | Q200: =ROUNDDOWN(P200,0) -> 0
... 200 more rows

Sheet Blad1
